Body Name,Body,Service Division Label,Service Division Code,Organisational Unit,Expenditure Category,Expenditure Code,CIPFA detailed expediture type,CIPFA detailed expediture code,Narrative,Date,Transaction number,Net Amount,Capital and Revenue,Supplier Name,Supplier ID
Chorley Borough Council,http://statistics.data.gov.uk/id/local-authority/30UE,Democratic Represent and  Mgnt,1007,Policy & Governance,Publicity - Advertising,40157,Miscellaneous Expenses,5034,Consultancy work regarding design ideas for the HLF bid at Astley Hall.,24/10/2018,133312,800.00,Revenue,24 Design Ltd,77478
Chorley Borough Council,http://statistics.data.gov.uk/id/local-authority/30UE,Central Support Services,1009,Early Intervention,Core Funding Grants,40133,Grants and Subscriptions,5031,small comm grant funding,10/10/2018,132860,255.00,Revenue,4th Chorley St. Peter`s Guides,77568
Chorley Borough Council,http://statistics.data.gov.uk/id/local-authority/30UE,Capital,Capital,Early Intervention,Grants,3002,Capital Expenditure,Capital,ADDRESS REDACTED,03/10/2018,132729,"9,046.75",Capital,Access Able UK Ltd,58149
Chorley Borough Council,http://statistics.data.gov.uk/id/local-authority/30UE,Capital,Capital,Early Intervention,Grants,3002,Capital Expenditure,Capital,ADDRESS REDACTED,03/10/2018,132763,"4,688.00",Capital,Access Able UK Ltd,58149
Chorley Borough Council,http://statistics.data.gov.uk/id/local-authority/30UE,Capital,Capital,Early Intervention,Grants,3002,Capital Expenditure,Capital,ADDRESS REDACTED,03/10/2018,132764,"5,270.60",Capital,Access Able UK Ltd,58149
Chorley Borough Council,http://statistics.data.gov.uk/id/local-authority/30UE,Democratic Represent and  Mgnt,1007,Policy & Governance,Other Fees,40212,Miscellaneous Expenses,5034,Bar fees for September 2018,03/10/2018,132748,325.00,Revenue,Ace Bars Ltd,54338
Chorley Borough Council,http://statistics.data.gov.uk/id/local-authority/30UE,Democratic Represent and  Mgnt,1007,Early Intervention,External Contractor - Trust or Charity,50008,Private Contractors,5042,ADDING VALUE WRITTEN OFF IN ERROR,24/10/2018,132766,"33,911.84",Revenue,Active Nation UK Ltd,17144
Chorley Borough Council,http://statistics.data.gov.uk/id/local-authority/30UE,Central Support Services,1009,Early Intervention,Core Funding Grants,40133,Grants and Subscriptions,5031,core funding grant,10/10/2018,132861,260.00,Revenue,Adlington Scout Group,77577
Chorley Borough Council,http://statistics.data.gov.uk/id/local-authority/30UE,Unapportionable Central OHeads,1009,Business Development & Growth,Burglar Alarms & Security Systems,20075,Fixtures and Fittings,5010,Blanket order for PPM materials i.e batteries Intruder / Access,31/10/2018,132767,404.00,Revenue,ADT Fire & Security,16645
Chorley Borough Council,http://statistics.data.gov.uk/id/local-authority/30UE,Service Management & Support,1009,Customer & Digital,Vehicles and Plant Maintenance,30045,Direct Transport Costs,5016,1 x track rod end (12-97515624),31/10/2018,133245,131.27,Revenue,Aebi Schmidt UK Ltd,17287
Chorley Borough Council,http://statistics.data.gov.uk/id/local-authority/30UE,Service Management & Support,1009,Customer & Digital,Vehicles and Plant Maintenance,30045,Direct Transport Costs,5016,2 x bearing bushes (1057597-8) @ 46.96 each,31/10/2018,133245,93.92,Revenue,Aebi Schmidt UK Ltd,17287
Chorley Borough Council,http://statistics.data.gov.uk/id/local-authority/30UE,Service Management & Support,1009,Customer & Digital,Vehicles and Plant Maintenance,30045,Direct Transport Costs,5016,1 x LH Link arm (1073497-6) @ 188.10 1 x RH Link arm (1073118-5) @ 188.10 1 x carriage charge @15.00,31/10/2018,133245,376.20,Revenue,Aebi Schmidt UK Ltd,17287
Chorley Borough Council,http://statistics.data.gov.uk/id/local-authority/30UE,Service Management & Support,1009,Customer & Digital,Vehicles and Plant Maintenance,30045,Direct Transport Costs,5016,FREIGHT,31/10/2018,133245,15.00,Revenue,Aebi Schmidt UK Ltd,17287
Chorley Borough Council,http://statistics.data.gov.uk/id/local-authority/30UE,Unapportionable Central OHeads,1009,Customer & Digital,Bank Charges,40151,Miscellaneous Expenses,5034,add ac fee,05/10/2018,132837,10.37,Revenue,Allpay Net Ltd,17242
Chorley Borough Council,http://statistics.data.gov.uk/id/local-authority/30UE,Unapportionable Central OHeads,1009,Customer & Digital,Bank Charges,40151,Miscellaneous Expenses,5034,returned chqs,05/10/2018,132837,4.20,Revenue,Allpay Net Ltd,17242
Chorley Borough Council,http://statistics.data.gov.uk/id/local-authority/30UE,Unapportionable Central OHeads,1009,Customer & Digital,Bank Charges,40151,Miscellaneous Expenses,5034,post office,05/10/2018,132837,942.51,Revenue,Allpay Net Ltd,17242
Chorley Borough Council,http://statistics.data.gov.uk/id/local-authority/30UE,Unapportionable Central OHeads,1009,Customer & Digital,Bank Charges,40151,Miscellaneous Expenses,5034,paypoint,05/10/2018,132837,589.61,Revenue,Allpay Net Ltd,17242
Chorley Borough Council,http://statistics.data.gov.uk/id/local-authority/30UE,Unapportionable Central OHeads,1009,Customer & Digital,Bank Charges,40151,Miscellaneous Expenses,5034,webcon,05/10/2018,132837,47.72,Revenue,Allpay Net Ltd,17242
Chorley Borough Council,http://statistics.data.gov.uk/id/local-authority/30UE,Development Control,1091,Policy & Governance,Car Leasing Payment,14100,Direct Employee Expenses,5001,PR67JUU Contract Hire,12/10/2018,132309,"2,954.48",Revenue,Alphabet (Uk) Fleet Management Ltd,16651
Chorley Borough Council,http://statistics.data.gov.uk/id/local-authority/30UE,Development Control,1091,Policy & Governance,Car Leasing Payment,14100,Direct Employee Expenses,5001,VAT,12/10/2018,132309,250.13,Revenue,Alphabet (Uk) Fleet Management Ltd,16651
Chorley Borough Council,http://statistics.data.gov.uk/id/local-authority/30UE,Unapportionable Central OHeads,1009,Policy & Governance,Car Leasing Payment,14100,Direct Employee Expenses,5001,RK66RGX Contract Hire,12/10/2018,132309,"2,202.03",Revenue,Alphabet (Uk) Fleet Management Ltd,16651
Chorley Borough Council,http://statistics.data.gov.uk/id/local-authority/30UE,Unapportionable Central OHeads,1009,Policy & Governance,Car Leasing Payment,14100,Direct Employee Expenses,5001,VAT,12/10/2018,132309,194.52,Revenue,Alphabet (Uk) Fleet Management Ltd,16651
Chorley Borough Council,http://statistics.data.gov.uk/id/local-authority/30UE,Central Support Services,1009,Policy & Governance,Car Leasing Payment,14100,Direct Employee Expenses,5001,PJ66GAO Contract Hire,12/10/2018,132935,"3,156.01",Revenue,Alphabet (Uk) Fleet Management Ltd,16651
Chorley Borough Council,http://statistics.data.gov.uk/id/local-authority/30UE,Central Support Services,1009,Policy & Governance,Car Leasing Payment,14100,Direct Employee Expenses,5001,VAT,12/10/2018,132935,267.82,Revenue,Alphabet (Uk) Fleet Management Ltd,16651
Chorley Borough Council,http://statistics.data.gov.uk/id/local-authority/30UE,Parking Services,1066,Customer & Digital,Supplies-Grounds Maintenance,40025,"Equipment, Furniture & Materia",5023,3 x 1500mm length Self Watering Promenade without wording Colour Light Sandstone.,03/10/2018,132724,"1,174.29",Revenue,Amberol,64554
Chorley Borough Council,http://statistics.data.gov.uk/id/local-authority/30UE,Central Support Services,1009,Customer & Digital,Computer Equipment-Purchase,40098,Communication and Computing,5028,"Astley cabling Re-location of existing CAT5e modules to desk positions in ground floor office2 X Excel CAT5e points in genu",17/10/2018,132744,440.00,Revenue,Ampec,76813
Chorley Borough Council,http://statistics.data.gov.uk/id/local-authority/30UE,Central Support Services,1009,Customer & Digital,Computer Equipment-Purchase,40098,Communication and Computing,5028,"Market Walk Offices cabling:35m of cable tray, 10 x double Cat6 sockets, 1 x Cat6 Patch panel",17/10/2018,133074,685.00,Revenue,Ampec,76813
Chorley Borough Council,http://statistics.data.gov.uk/id/local-authority/30UE,Economic Development,1096,Business Development & Growth,Cleaning Materials,40019,"Equipment, Furniture & Materia",5023,po raised on wrong ac (107966),24/10/2018,132950,299.12,Revenue,Amtoll Ltd,21738
Chorley Borough Council,http://statistics.data.gov.uk/id/local-authority/30UE,Economic Development,1096,Business Development & Growth,Cleaning Materials,40019,"Equipment, Furniture & Materia",5023,Please supply cleaning supplies as per e-mail,31/10/2018,133364,329.04,Revenue,Amtoll Ltd,21738
Chorley Borough Council,http://statistics.data.gov.uk/id/local-authority/30UE,Central Support Services,1009,Early Intervention,Licence Fees,60084,Customer & Client Receipts,5064,refund for surrender of street tarding consent,05/10/2018,132834,360.00,Revenue,NAME REDACTED,67672
Chorley Borough Council,http://statistics.data.gov.uk/id/local-authority/30UE,Unapportionable Central OHeads,1009,Business Development & Growth,Planned Maintenance,20006,Repairs Maintenance & Alts,5005,Asbestos survey at union st for cabling works,31/10/2018,133394,415.00,Revenue,APEC Environmental Limited,77633
Chorley Borough Council,http://statistics.data.gov.uk/id/local-authority/30UE,Unapportionable Central OHeads,1009,Policy & Governance,Consultants` Fees,40077,Services,5027,Professional Services,10/10/2018,132187,"2,000.00",Revenue,Arlingclose Ltd,77270
Chorley Borough Council,http://statistics.data.gov.uk/id/local-authority/30UE,Homelessness,1075,Policy & Governance,Car Leasing Payment,14100,Direct Employee Expenses,5001,NAME REDACTED Car Leasing,10/10/2018,132528,"3,477.36",Revenue,Arnold Clark Finance Ltd,20685
Chorley Borough Council,http://statistics.data.gov.uk/id/local-authority/30UE,Homelessness,1075,Policy & Governance,Car Leasing Payment,14100,Direct Employee Expenses,5001,Vat,10/10/2018,132528,314.86,Revenue,Arnold Clark Finance Ltd,20685
Chorley Borough Council,http://statistics.data.gov.uk/id/local-authority/30UE,Unapportionable Central OHeads,1009,Policy & Governance,Car Leasing Payment,14100,Direct Employee Expenses,5001,Car Leasing,12/10/2018,132806,"2,768.28",Revenue,Arnold Clark Finance Ltd,20685
Chorley Borough Council,http://statistics.data.gov.uk/id/local-authority/30UE,Unapportionable Central OHeads,1009,Policy & Governance,Car Leasing Payment,14100,Direct Employee Expenses,5001,VAT,12/10/2018,132806,276.83,Revenue,Arnold Clark Finance Ltd,20685
Chorley Borough Council,http://statistics.data.gov.uk/id/local-authority/30UE,Central Support Services,1009,Policy & Governance,Car Leasing Payment,14100,Direct Employee Expenses,5001,NAME REDACTED Car Leasing,10/10/2018,132936,"3,577.32",Revenue,Arnold Clark Finance Ltd,20685
Chorley Borough Council,http://statistics.data.gov.uk/id/local-authority/30UE,Central Support Services,1009,Policy & Governance,Car Leasing Payment,14100,Direct Employee Expenses,5001,VAT,10/10/2018,132936,313.69,Revenue,Arnold Clark Finance Ltd,20685
Chorley Borough Council,http://statistics.data.gov.uk/id/local-authority/30UE,Corporate Management,1008,Policy & Governance,Bank Charges,40151,Miscellaneous Expenses,5034,,03/10/2018,132357,15.00,Revenue,Barclaycard Merchant Services,61601
Chorley Borough Council,http://statistics.data.gov.uk/id/local-authority/30UE,Corporate Management,1008,Policy & Governance,Bank Charges,40151,Miscellaneous Expenses,5034,,03/10/2018,132357,741.09,Revenue,Barclaycard Merchant Services,61601
Chorley Borough Council,http://statistics.data.gov.uk/id/local-authority/30UE,Corporate Management,1008,Policy & Governance,Bank Charges,40151,Miscellaneous Expenses,5034,,03/10/2018,132358,15.00,Revenue,Barclaycard Merchant Services,61601
Chorley Borough Council,http://statistics.data.gov.uk/id/local-authority/30UE,Corporate Management,1008,Policy & Governance,Bank Charges,40151,Miscellaneous Expenses,5034,,03/10/2018,132358,318.37,Revenue,Barclaycard Merchant Services,61601
Chorley Borough Council,http://statistics.data.gov.uk/id/local-authority/30UE,Corporate Management,1008,Policy & Governance,Bank Charges,40151,Miscellaneous Expenses,5034,,03/10/2018,132359,15.00,Revenue,Barclaycard Merchant Services,61601
Chorley Borough Council,http://statistics.data.gov.uk/id/local-authority/30UE,Corporate Management,1008,Policy & Governance,Bank Charges,40151,Miscellaneous Expenses,5034,,03/10/2018,132359,"1,244.15",Revenue,Barclaycard Merchant Services,61601
Chorley Borough Council,http://statistics.data.gov.uk/id/local-authority/30UE,Capital,Capital,Business Development & Growth,Main Contractor,3007,Capital Expenditure,Capital,Retention Fee for roofing works completed at Chorley North Ind estate,24/10/2018,133177,994.43,Capital,BBR Roofing Ltd,76407
Chorley Borough Council,http://statistics.data.gov.uk/id/local-authority/30UE,Central Support Services,1009,Business Development & Growth,Professional Fees,40063,Services,5027,"Architecture works for Cowling, Chorley. Joint venture with Homes England",03/10/2018,132745,"19,500.00",Revenue,BDP,77191
Chorley Borough Council,http://statistics.data.gov.uk/id/local-authority/30UE,Homelessness,1075,Early Intervention,Laundry,40042,"Clothing, Uniforms and Laundry",5025,Weekly linen Service,03/10/2018,132769,359.51,Revenue,Berendsen UK Ltd,20799
Chorley Borough Council,http://statistics.data.gov.uk/id/local-authority/30UE,Homelessness,1075,Early Intervention,Laundry,40042,"Clothing, Uniforms and Laundry",5025,Weekly linen Service,31/10/2018,133406,284.35,Revenue,Berendsen UK Ltd,20799
Chorley Borough Council,http://statistics.data.gov.uk/id/local-authority/30UE,Democratic Represent and  Mgnt,1007,Business Development & Growth,Maintenance/Nature Reserves,20045,Grounds Maintenance Costs,5013,History Trail Leaflet Size: A3 folded to 1/3 A4 Materials: 100gsm 100% recycled uncoated Printed: 4 colour process both sides,17/10/2018,132984,250.00,Revenue,BHW Print Group,77459
Chorley Borough Council,http://statistics.data.gov.uk/id/local-authority/30UE,Democratic Represent and  Mgnt,1007,Business Development & Growth,Maintenance/Nature Reserves,20045,Grounds Maintenance Costs,5013,"Yarrow Valley Blue, Red, Green and Yellow Walk Leaflet x 4 kinds - 1000 off each = 4000 in total Origination: quote no 125829 ",17/10/2018,132985,383.00,Revenue,BHW Print Group,77459
Chorley Borough Council,http://statistics.data.gov.uk/id/local-authority/30UE,Central Support Services,1009,Policy & Governance,External Contractor,40198,Miscellaneous Expenses,5034,provision of payroll services 2018/2019,26/10/2018,133190,"6,847.18",Revenue,Blackpool Borough Council,16518
Chorley Borough Council,http://statistics.data.gov.uk/id/local-authority/30UE,Unapportionable Central OHeads,1009,Business Development & Growth,Asset Maintenance Fund,20012,Repairs Maintenance & Alts,5005,Flooring at the Town Hall in HR office,24/10/2018,132770,940.00,Revenue,Branagan Flooring Services Ltd,77228
Chorley Borough Council,http://statistics.data.gov.uk/id/local-authority/30UE,Corporate Management,1008,Policy & Governance,Exhibitions & Special Events,40158,Miscellaneous Expenses,5034,Punch and Judy and balloon modelling in Market Walk,31/10/2018,133351,360.00,Revenue,Brian Gore,18370
Chorley Borough Council,http://statistics.data.gov.uk/id/local-authority/30UE,Economic Development,1096,Business Development & Growth,Fixtures & Fittings - Purchase,20027,Fixtures and Fittings,5010,1x BXPU 1539-RT Manchester Pu Bollards 940mm above ground Root fixed Coated black RAL 9005 White reflective band 115 ,05/10/2018,132807,115.00,Revenue,Broxap Ltd,16718
Chorley Borough Council,http://statistics.data.gov.uk/id/local-authority/30UE,Economic Development,1096,Business Development & Growth,Fixtures & Fittings - Purchase,20027,Fixtures and Fittings,5010,4x BXPU 1539-RM Manchester Pu Removable Bollards Complete with ground socket 940mm ground Coated black RAL 9005,05/10/2018,132807,760.00,Revenue,Broxap Ltd,16718
Chorley Borough Council,http://statistics.data.gov.uk/id/local-authority/30UE,Economic Development,1096,Business Development & Growth,Fixtures & Fittings - Purchase,20027,Fixtures and Fittings,5010,2x BXPU STD/SOCKET Additional Removable Socket To suit BXPU 1539-RM Manchester Bollards 75 each,05/10/2018,132807,150.00,Revenue,Broxap Ltd,16718
Chorley Borough Council,http://statistics.data.gov.uk/id/local-authority/30UE,Economic Development,1096,Business Development & Growth,Fixtures & Fittings - Purchase,20027,Fixtures and Fittings,5010,"1x Delivery charge, based on carriage to a PR  postcode area (1x single pallet, no off-loading)- 70",05/10/2018,132807,70.00,Revenue,Broxap Ltd,16718
Chorley Borough Council,http://statistics.data.gov.uk/id/local-authority/30UE,Service Management & Support,1009,Customer & Digital,Supplies-Grounds Maintenance,40025,"Equipment, Furniture & Materia",5023,"Emptying of interceptor tanks and clearing/jetting drains at Bengal St Depot, to comply with EA Licence conditions, at the agreed",31/10/2018,132771,325.00,Revenue,C J Lyon,16579
Chorley Borough Council,http://statistics.data.gov.uk/id/local-authority/30UE,Service Management & Support,1009,Customer & Digital,Supplies-Grounds Maintenance,40025,"Equipment, Furniture & Materia",5023,"Clearing of Trash Screen and Jet the drains/line at Higher Meadow, Clayton at agreed price of 65.00 per hour (2 hours maximum)",31/10/2018,132983,130.00,Revenue,C J Lyon,16579
Chorley Borough Council,http://statistics.data.gov.uk/id/local-authority/30UE,Service Management & Support,1009,Customer & Digital,Supplies-Grounds Maintenance,40025,"Equipment, Furniture & Materia",5023,"Clearing of Trash Screen and Jet the drains/line at Rowan Croft, Clayton at agreed price of 65.00 per hour (2 hours maximum) ",31/10/2018,132983,130.00,Revenue,C J Lyon,16579
Chorley Borough Council,http://statistics.data.gov.uk/id/local-authority/30UE,Service Management & Support,1009,Customer & Digital,Vehicles and Plant Maintenance,30045,Direct Transport Costs,5016,carry out repairs to RV14DVB  - diagnose ABS fault  - replace rear disc brakes and pad sensors  - replace rear wheel bearings,10/10/2018,132797,"1,326.56",Revenue,C P Davidson & Sons Ltd,21093
Chorley Borough Council,http://statistics.data.gov.uk/id/local-authority/30UE,Homelessness,1075,Early Intervention,Professional Fees,40063,Services,5027,Provision of Accommodation Finding Services (24 hours) & Resettlement Service (6 hours) For Period 1st July 2018 30th Sept18,03/10/2018,132772,"7,286.50",Revenue,Calico Enterprise,73338
Chorley Borough Council,http://statistics.data.gov.uk/id/local-authority/30UE,Unapportionable Central OHeads,1009,Customer & Digital,Emergency Call Out System,40096,Communication and Computing,5028,Out of hours call charges Sept  2018,17/10/2018,132823,309.96,Revenue,CallCare Ltd,20257
Chorley Borough Council,http://statistics.data.gov.uk/id/local-authority/30UE,Unapportionable Central OHeads,1009,Customer & Digital,Emergency Call Out System,40096,Communication and Computing,5028,Out of hours standing charge Nov 2018,17/10/2018,132823,120.00,Revenue,CallCare Ltd,20257
Chorley Borough Council,http://statistics.data.gov.uk/id/local-authority/30UE,Service Management & Support,1009,Customer & Digital,Gas,20014,Energy Costs,5006,bulk proane,05/10/2018,132808,850.56,Revenue,Calor Gas Limited,22104
Chorley Borough Council,http://statistics.data.gov.uk/id/local-authority/30UE,Unapportionable Central OHeads,1009,Policy & Governance,Refuse Collection,20037,Cleaning and Domestic Supplies,5012,"Provision of all services to Council sites Fragrances, mats, medical waste, vending machines April 18 to March 19",19/10/2018,132774,"1,131.12",Revenue,Cannon Hygiene Limited,18158
Chorley Borough Council,http://statistics.data.gov.uk/id/local-authority/30UE,Central Support Services,1009,Customer & Digital,Computer Equipment-Maintenance,40105,Communication and Computing,5028,SW Maintenance; period 17-9/18 to 16-9-19,17/10/2018,132599,"1,114.75",Revenue,Canon (UK) Ltd,17492
Chorley Borough Council,http://statistics.data.gov.uk/id/local-authority/30UE,Central Support Services,1009,Customer & Digital,Miscellaneous Expenses,40200,Miscellaneous Expenses,5034,contract GB-505918-OKS,17/10/2018,132773,"1,730.16",Revenue,Canon (UK) Ltd,17492
Chorley Borough Council,http://statistics.data.gov.uk/id/local-authority/30UE,Housing Benefit Administration,1077,Customer & Digital,Computer Software-Additional,40102,Communication and Computing,5028,Modelling Tool Plus (Income Banding CTS Modelling Tool) Revenues and Benefits solution,10/10/2018,132961,"2,095.00",Revenue,Capita Business Services Ltd,17151
Chorley Borough Council,http://statistics.data.gov.uk/id/local-authority/30UE,Democratic Represent and  Mgnt,1007,Policy & Governance,Exhibitions,40176,Miscellaneous Expenses,5034,"Collection from Peterborough, Delivery to Astley hall, Chorley; of space exhibition. As discussed over phone and email.",10/10/2018,132858,579.00,Revenue,Chell Deliveries,75926
Chorley Borough Council,http://statistics.data.gov.uk/id/local-authority/30UE,Parking Services,1066,Business Development & Growth,External Contractors,50008,Private Contractors,5042,Processing 074 - Provision of Notice. Processing Services for period of 01.04.18 - 31.03.19 -Notice Processing Services ,24/10/2018,133170,733.32,Revenue,Chipside Ltd,22063
Chorley Borough Council,http://statistics.data.gov.uk/id/local-authority/30UE,Parking Services,1066,Business Development & Growth,External Contractors,50008,Private Contractors,5042,Processing 086 - Other Correspondence Postage & Packing (such as responses to Pre & Post NTO/CC/OofR etc). (estimated) ,24/10/2018,133170,124.80,Revenue,Chipside Ltd,22063
Chorley Borough Council,http://statistics.data.gov.uk/id/local-authority/30UE,Corporate Management,1008,Early Intervention,Taxi Testing & Vehicle Safety Report,40234,Services,5027,tax test,17/10/2018,132986,145.35,Revenue,Chorley Autocare Ltd,17110
Chorley Borough Council,http://statistics.data.gov.uk/id/local-authority/30UE,Corporate Management,1008,Early Intervention,Taxi Testing & Vehicle Safety Report,40234,Services,5027,mot,17/10/2018,132986,932.45,Revenue,Chorley Autocare Ltd,17110
Chorley Borough Council,http://statistics.data.gov.uk/id/local-authority/30UE,Economic Development,1096,Chief Executive,Miscellaneous Expenses,40200,Miscellaneous Expenses,5034,PO rec for posting CCTV disc to NAME REDACTED,24/10/2018,133318,1.89,Revenue,Chorley BC Petty Cash,16301
Chorley Borough Council,http://statistics.data.gov.uk/id/local-authority/30UE,Economic Development,1096,Chief Executive,Miscellaneous Expenses,40200,Miscellaneous Expenses,5034,PO rec for posting CCTV disc to NAME REDACTED,24/10/2018,133318,1.89,Revenue,Chorley BC Petty Cash,16301
Chorley Borough Council,http://statistics.data.gov.uk/id/local-authority/30UE,Unapportionable Central OHeads,1009,Chief Executive,Cleaning Materials,40019,"Equipment, Furniture & Materia",5023,dishwasher tablets,24/10/2018,133318,13.32,Revenue,Chorley BC Petty Cash,16301
Chorley Borough Council,http://statistics.data.gov.uk/id/local-authority/30UE,Democratic Represent and  Mgnt,1007,Chief Executive,Use Of Transport - Mayoral Car,30015,Transport Recharges,5017,mayoral car wash,24/10/2018,133318,6.00,Revenue,Chorley BC Petty Cash,16301
Chorley Borough Council,http://statistics.data.gov.uk/id/local-authority/30UE,Democratic Represent and  Mgnt,1007,Chief Executive,Tools & Equipment - Purchase,40003,"Equipment, Furniture & Materia",5023,keys cut urgently,24/10/2018,133318,8.33,Revenue,Chorley BC Petty Cash,16301
Chorley Borough Council,http://statistics.data.gov.uk/id/local-authority/30UE,Democratic Represent and  Mgnt,1007,Chief Executive,Tools & Equipment - Purchase,40003,"Equipment, Furniture & Materia",5023,vases for wedding display,24/10/2018,133318,2.50,Revenue,Chorley BC Petty Cash,16301
Chorley Borough Council,http://statistics.data.gov.uk/id/local-authority/30UE,Democratic Represent and  Mgnt,1007,Chief Executive,Naming Ceremony Fees,60076,Customer & Client Receipts,5064,milk for conference room,24/10/2018,133318,1.09,Revenue,Chorley BC Petty Cash,16301
Chorley Borough Council,http://statistics.data.gov.uk/id/local-authority/30UE,Democratic Represent and  Mgnt,1007,Chief Executive,Tools & Equipment - Purchase,40003,"Equipment, Furniture & Materia",5023,cutlery for conference room,24/10/2018,133318,3.41,Revenue,Chorley BC Petty Cash,16301
Chorley Borough Council,http://statistics.data.gov.uk/id/local-authority/30UE,Democratic Represent and  Mgnt,1007,Chief Executive,Professional Fees,40063,Services,5027,LED candles for wedding display,24/10/2018,133318,6.67,Revenue,Chorley BC Petty Cash,16301
Chorley Borough Council,http://statistics.data.gov.uk/id/local-authority/30UE,Unapportionable Central OHeads,1009,Chief Executive,Refreshments,40036,Catering,5024,12 pints of milk,24/10/2018,133318,3.20,Revenue,Chorley BC Petty Cash,16301
Chorley Borough Council,http://statistics.data.gov.uk/id/local-authority/30UE,Democratic Represent and  Mgnt,1007,Chief Executive,Tools & Equipment - Purchase,40003,"Equipment, Furniture & Materia",5023,socket & wheel repairs to staging in lancastrian,24/10/2018,133318,7.69,Revenue,Chorley BC Petty Cash,16301
Chorley Borough Council,http://statistics.data.gov.uk/id/local-authority/30UE,Unapportionable Central OHeads,1009,Chief Executive,Refreshments,40036,Catering,5024,milk for civics,24/10/2018,133318,2.20,Revenue,Chorley BC Petty Cash,16301
Chorley Borough Council,http://statistics.data.gov.uk/id/local-authority/30UE,Unapportionable Central OHeads,1009,Chief Executive,Refreshments,40036,Catering,5024,biscuits for lancastrian,24/10/2018,133318,4.00,Revenue,Chorley BC Petty Cash,16301
Chorley Borough Council,http://statistics.data.gov.uk/id/local-authority/30UE,Unapportionable Central OHeads,1009,Chief Executive,Refreshments,40036,Catering,5024,biscuits for lancastrian event,24/10/2018,133318,5.97,Revenue,Chorley BC Petty Cash,16301
Chorley Borough Council,http://statistics.data.gov.uk/id/local-authority/30UE,Unapportionable Central OHeads,1009,Chief Executive,Tools & Equipment - Purchase,40003,"Equipment, Furniture & Materia",5023,tools & equip kettle for ce office,24/10/2018,133318,14.99,Revenue,Chorley BC Petty Cash,16301
Chorley Borough Council,http://statistics.data.gov.uk/id/local-authority/30UE,Unapportionable Central OHeads,1009,Chief Executive,Tools & Equipment - Purchase,40003,"Equipment, Furniture & Materia",5023,tools & equip kettle for ce office,24/10/2018,133318,14.99,Revenue,Chorley BC Petty Cash,16301
Chorley Borough Council,http://statistics.data.gov.uk/id/local-authority/30UE,Central Support Services,1009,Chief Executive,Play Events,40181,Miscellaneous Expenses,5034,iceland - juice & water,24/10/2018,133318,9.89,Revenue,Chorley BC Petty Cash,16301
Chorley Borough Council,http://statistics.data.gov.uk/id/local-authority/30UE,Central Support Services,1009,Chief Executive,Community Develop Initiatives,40185,Miscellaneous Expenses,5034,mccolls - juice,24/10/2018,133318,2.30,Revenue,Chorley BC Petty Cash,16301
Chorley Borough Council,http://statistics.data.gov.uk/id/local-authority/30UE,Central Support Services,1009,Chief Executive,Community Develop Initiatives,40185,Miscellaneous Expenses,5034,tesco various items for palyday,24/10/2018,133318,11.58,Revenue,Chorley BC Petty Cash,16301
Chorley Borough Council,http://statistics.data.gov.uk/id/local-authority/30UE,Democratic Represent and  Mgnt,1007,Chief Executive,Use Of Transport - Mayoral Car,30015,Transport Recharges,5017,car wash,24/10/2018,133318,5.00,Revenue,Chorley BC Petty Cash,16301
Chorley Borough Council,http://statistics.data.gov.uk/id/local-authority/30UE,Democratic Represent and  Mgnt,1007,Chief Executive,Use Of Transport - Mayoral Car,30015,Transport Recharges,5017,car park fee,24/10/2018,133318,13.00,Revenue,Chorley BC Petty Cash,16301
Chorley Borough Council,http://statistics.data.gov.uk/id/local-authority/30UE,Democratic Represent and  Mgnt,1007,Chief Executive,Use Of Transport - Mayoral Car,30015,Transport Recharges,5017,car park fee,24/10/2018,133318,3.20,Revenue,Chorley BC Petty Cash,16301
Chorley Borough Council,http://statistics.data.gov.uk/id/local-authority/30UE,Tourism,1039,Chief Executive,Miscellaneous Expenses,40200,Miscellaneous Expenses,5034,kettle for flower show,24/10/2018,133318,10.83,Revenue,Chorley BC Petty Cash,16301
Chorley Borough Council,http://statistics.data.gov.uk/id/local-authority/30UE,Tourism,1039,Chief Executive,Miscellaneous Expenses,40200,Miscellaneous Expenses,5034,fresh orange juice,24/10/2018,133318,8.75,Revenue,Chorley BC Petty Cash,16301
Chorley Borough Council,http://statistics.data.gov.uk/id/local-authority/30UE,Tourism,1039,Chief Executive,Miscellaneous Expenses,40200,Miscellaneous Expenses,5034,milk for flower show,24/10/2018,133318,4.40,Revenue,Chorley BC Petty Cash,16301
Chorley Borough Council,http://statistics.data.gov.uk/id/local-authority/30UE,Democratic Represent and  Mgnt,1007,Chief Executive,Use Of Transport - Mayoral Car,30015,Transport Recharges,5017,car wash,24/10/2018,133318,8.00,Revenue,Chorley BC Petty Cash,16301
Chorley Borough Council,http://statistics.data.gov.uk/id/local-authority/30UE,Economic Development,1096,Chief Executive,Miscellaneous Expenses,40200,Miscellaneous Expenses,5034,post office rec,24/10/2018,133318,1.89,Revenue,Chorley BC Petty Cash,16301
Chorley Borough Council,http://statistics.data.gov.uk/id/local-authority/30UE,Unapportionable Central OHeads,1009,Chief Executive,Tools & Equipment - Purchase,40003,"Equipment, Furniture & Materia",5023,light bulbs,24/10/2018,133318,6.65,Revenue,Chorley BC Petty Cash,16301
Chorley Borough Council,http://statistics.data.gov.uk/id/local-authority/30UE,Business Support,1095,Chief Executive,Miscellaneous Expenses,40200,Miscellaneous Expenses,5034,keys replacement,24/10/2018,133318,15.99,Revenue,Chorley BC Petty Cash,16301
Chorley Borough Council,http://statistics.data.gov.uk/id/local-authority/30UE,Business Support,1095,Chief Executive,Miscellaneous Expenses,40200,Miscellaneous Expenses,5034,"reusable tabs to erect ""to let"" sign in window of unit 8 MW",24/10/2018,133318,3.32,Revenue,Chorley BC Petty Cash,16301
Chorley Borough Council,http://statistics.data.gov.uk/id/local-authority/30UE,Economic Development,1096,Chief Executive,Miscellaneous Expenses,40200,Miscellaneous Expenses,5034,concrete to block vermin holes at market,24/10/2018,133318,6.50,Revenue,Chorley BC Petty Cash,16301
Chorley Borough Council,http://statistics.data.gov.uk/id/local-authority/30UE,Elections,1012,Chief Executive,Postages,40082,Communication and Computing,5028,postage,24/10/2018,133318,2.00,Revenue,Chorley BC Petty Cash,16301
Chorley Borough Council,http://statistics.data.gov.uk/id/local-authority/30UE,Elections,1012,Chief Executive,Postages,40082,Communication and Computing,5028,postage for cctv footage,24/10/2018,133318,1.89,Revenue,Chorley BC Petty Cash,16301
Chorley Borough Council,http://statistics.data.gov.uk/id/local-authority/30UE,Business Support,1095,Chief Executive,Miscellaneous Expenses,40200,Miscellaneous Expenses,5034,spare set keys unit 8 MW,24/10/2018,133318,8.73,Revenue,Chorley BC Petty Cash,16301
Chorley Borough Council,http://statistics.data.gov.uk/id/local-authority/30UE,Central Support Services,1009,Chief Executive,Community Develop Initiatives,40185,Miscellaneous Expenses,5034,sport award certificate,24/10/2018,133318,5.84,Revenue,Chorley BC Petty Cash,16301
Chorley Borough Council,http://statistics.data.gov.uk/id/local-authority/30UE,Homelessness,1075,Chief Executive,Miscellaneous Expenses,40200,Miscellaneous Expenses,5034,manchester airport parking syrian resettlement programme,24/10/2018,133318,15.00,Revenue,Chorley BC Petty Cash,16301
Chorley Borough Council,http://statistics.data.gov.uk/id/local-authority/30UE,Economic Development,1096,Chief Executive,Miscellaneous Expenses,40200,Miscellaneous Expenses,5034,postage costs for CCTV footage sent to LCC (NAME REDACTED Gala Bingo),24/10/2018,133318,2.36,Revenue,Chorley BC Petty Cash,16301
Chorley Borough Council,http://statistics.data.gov.uk/id/local-authority/30UE,Parking Services,1066,Chief Executive,Miscellaneous Expenses,40200,Miscellaneous Expenses,5034,postage costs to send faulty key to parkeon,24/10/2018,133318,1.89,Revenue,Chorley BC Petty Cash,16301
Chorley Borough Council,http://statistics.data.gov.uk/id/local-authority/30UE,Central Support Services,1009,Chief Executive,Sports Development Initiatives,40186,Miscellaneous Expenses,5034,bubble wrap sports awards,24/10/2018,133318,3.32,Revenue,Chorley BC Petty Cash,16301
Chorley Borough Council,http://statistics.data.gov.uk/id/local-authority/30UE,Democratic Represent and  Mgnt,1007,Chief Executive,Exhibitions,40176,Miscellaneous Expenses,5034,batteries for hall general use,24/10/2018,133318,0.84,Revenue,Chorley BC Petty Cash,16301
Chorley Borough Council,http://statistics.data.gov.uk/id/local-authority/30UE,Democratic Represent and  Mgnt,1007,Chief Executive,Educational Asset Devel,40192,Miscellaneous Expenses,5034,5 pks chalk for activity,24/10/2018,133318,3.12,Revenue,Chorley BC Petty Cash,16301
Chorley Borough Council,http://statistics.data.gov.uk/id/local-authority/30UE,Democratic Represent and  Mgnt,1007,Chief Executive,Tools & Equipment - Purchase,40003,"Equipment, Furniture & Materia",5023,batteries for astley,24/10/2018,133318,4.50,Revenue,Chorley BC Petty Cash,16301
Chorley Borough Council,http://statistics.data.gov.uk/id/local-authority/30UE,Unapportionable Central OHeads,1009,Chief Executive,Refreshments,40036,Catering,5024,sugar & milk,24/10/2018,133318,2.48,Revenue,Chorley BC Petty Cash,16301
Chorley Borough Council,http://statistics.data.gov.uk/id/local-authority/30UE,Democratic Represent and  Mgnt,1007,Chief Executive,Tools & Equipment - Purchase,40003,"Equipment, Furniture & Materia",5023,black suedette for new projector skirt,24/10/2018,133318,15.00,Revenue,Chorley BC Petty Cash,16301
Chorley Borough Council,http://statistics.data.gov.uk/id/local-authority/30UE,Democratic Represent and  Mgnt,1007,Chief Executive,Use Of Transport - Mayoral Car,30015,Transport Recharges,5017,mayorial car wash,24/10/2018,133318,10.00,Revenue,Chorley BC Petty Cash,16301
Chorley Borough Council,http://statistics.data.gov.uk/id/local-authority/30UE,Democratic Represent and  Mgnt,1007,Chief Executive,Stationery,40050,"Printing, Stationery & General",5026,diary 2019 A5,24/10/2018,133318,1.00,Revenue,Chorley BC Petty Cash,16301
Chorley Borough Council,http://statistics.data.gov.uk/id/local-authority/30UE,Democratic Represent and  Mgnt,1007,Chief Executive,Stationery,40050,"Printing, Stationery & General",5026,diary 2019 A4,24/10/2018,133318,6.00,Revenue,Chorley BC Petty Cash,16301
Chorley Borough Council,http://statistics.data.gov.uk/id/local-authority/30UE,Central Support Services,1009,Early Intervention,Core Funding Grants,40133,Grants and Subscriptions,5031,core funding grants,10/10/2018,132889,500.00,Revenue,Chorley Community First Responders,77569
Chorley Borough Council,http://statistics.data.gov.uk/id/local-authority/30UE,Business Support,1095,Early Intervention,Fixtures & Fittings - Purchase,20027,Fixtures and Fittings,5010,White Goods for Show Apartment,19/10/2018,133142,373.33,Revenue,Chorley Cooker Centre Ltd T/A CCC Appliances,77626
Chorley Borough Council,http://statistics.data.gov.uk/id/local-authority/30UE,Central Support Services,1009,Early Intervention,Core Funding Grants,40133,Grants and Subscriptions,5031,core funding grants,10/10/2018,132887,282.00,Revenue,Chorley District Explorer Scouts,77566
Chorley Borough Council,http://statistics.data.gov.uk/id/local-authority/30UE,Service Management & Support,1009,Customer & Digital,Vehicles and Plant Maintenance,30045,Direct Transport Costs,5016,"2x 265/70X19.5 budget drive tyres Dated 27/09/2018, invoice number: 24490, on vehicle PN66 RCU",31/10/2018,133087,296.00,Revenue,Chorley Tyres,53719
Chorley Borough Council,http://statistics.data.gov.uk/id/local-authority/30UE,Unapportionable Central OHeads,1009,Policy & Governance,Training Course Fees,17010,Indirect Employee Expenses,5002,1 x place on the Introduction to Public Sector Treasury Management workshop on 27 Sept 18 Manchester for NAME REDACTED,05/10/2018,132832,295.00,Revenue,CIPFA Business Ltd,16247
Chorley Borough Council,http://statistics.data.gov.uk/id/local-authority/30UE,Business Support,1095,Business Development & Growth,Fixtures & Fittings - Repair/Mtnce,20028,Fixtures and Fittings,5010,Remove redundant cat wire between Fragrance to B&M`s x 1 Test anchors between Vodafone to Rymans x 4 Test anchors,19/10/2018,133118,480.00,Revenue,City Illuminations Ltd,77388
Chorley Borough Council,http://statistics.data.gov.uk/id/local-authority/30UE,Service Management & Support,1009,Customer & Digital,Grounds Maintenance Contractor,20043,Grounds Maintenance Costs,5013,Hire for two days vehicle with boom and operatives,31/10/2018,133157,"1,100.00",Revenue,City Illuminations Ltd,77388
Chorley Borough Council,http://statistics.data.gov.uk/id/local-authority/30UE,Elections,1012,Policy & Governance,Rent/Hire Of Premises,20017,Premises Rents,5007,room hire for polling station on 3 May 2018,24/10/2018,133258,255.00,Revenue,Clayton-Le-Woods Community Centre,18526
Chorley Borough Council,http://statistics.data.gov.uk/id/local-authority/30UE,Public Transport,1067,Customer & Digital,Bus Shelters -Maintenance,20062,Grounds Maintenance Costs,5013,Supply and install a 2-bay cantilever bus shelter at Bolton Street Chorley as per your quotation 20022/2018,05/10/2018,132798,"2,018.00",Revenue,Commutaports,56228
Chorley Borough Council,http://statistics.data.gov.uk/id/local-authority/30UE,Service Management & Support,1009,Business Development & Growth,Grounds Maintenance Contractor,20043,Grounds Maintenance Costs,5013,Year 1 works for woodland management along Yarrow Valley Way to agreed specification.,17/10/2018,133080,"5,163.75",Revenue,Conservation Contracts North West,20520
Chorley Borough Council,http://statistics.data.gov.uk/id/local-authority/30UE,Recognised Cap Grants & Conts,,Customer & Digital,Contributions Parish Councils,40144,Grants and Subscriptions,5031,cil rec 1/4/18 to 30/9/18,24/10/2018,132908,"100,246.74",Revenue,Coppull Parish Council,17025
Chorley Borough Council,http://statistics.data.gov.uk/id/local-authority/30UE,Central Support Services,1009,Early Intervention,Core Funding Grants,40133,Grants and Subscriptions,5031,core funding grant,10/10/2018,132911,350.00,Revenue,Coppull St |ohn and Coppull Parish Playgroup,77558
Chorley Borough Council,http://statistics.data.gov.uk/id/local-authority/30UE,Service Management & Support,1009,Business Development & Growth,Supplies-Grounds Maintenance,40025,"Equipment, Furniture & Materia",5023,Installation of Yarrow Valley De-fib including labour and materials.,17/10/2018,133004,349.86,Revenue,Corlett Electrical Eng Co Ltd,16271
Chorley Borough Council,http://statistics.data.gov.uk/id/local-authority/30UE,Unapportionable Central OHeads,1009,Business Development & Growth,General Repairs - Reactive,20004,Repairs Maintenance & Alts,5005,Blanket order for reactive works,31/10/2018,133218,261.05,Revenue,Corlett Electrical Eng Co Ltd,16271
Chorley Borough Council,http://statistics.data.gov.uk/id/local-authority/30UE,Unapportionable Central OHeads,1009,Business Development & Growth,General Repairs - Reactive,20004,Repairs Maintenance & Alts,5005,Blanket order for reactive works,31/10/2018,133222,369.17,Revenue,Corlett Electrical Eng Co Ltd,16271
Chorley Borough Council,http://statistics.data.gov.uk/id/local-authority/30UE,Unapportionable Central OHeads,1009,Business Development & Growth,General Repairs - Reactive,20004,Repairs Maintenance & Alts,5005,Blanket order for reactive works,31/10/2018,133223,390.80,Revenue,Corlett Electrical Eng Co Ltd,16271
Chorley Borough Council,http://statistics.data.gov.uk/id/local-authority/30UE,Homelessness,1075,Business Development & Growth,Gas,20014,Energy Costs,5006,Sept 18 - Oct 18,31/10/2018,133262,529.00,Revenue,Corona Energy Retail 2 Ltd,67249
Chorley Borough Council,http://statistics.data.gov.uk/id/local-authority/30UE,Democratic Represent and  Mgnt,1007,Business Development & Growth,Gas,20014,Energy Costs,5006,Sept 18 - Oct 18,31/10/2018,133266,305.73,Revenue,Corona Energy Retail 2 Ltd,67249
Chorley Borough Council,http://statistics.data.gov.uk/id/local-authority/30UE,Unapportionable Central OHeads,1009,Business Development & Growth,Gas,20014,Energy Costs,5006,Sept 18 - Oct 18,31/10/2018,133268,353.44,Revenue,Corona Energy Retail 2 Ltd,67249
Chorley Borough Council,http://statistics.data.gov.uk/id/local-authority/30UE,Unapportionable Central OHeads,1009,Business Development & Growth,Gas,20014,Energy Costs,5006,Sept 18 - Oct 18,31/10/2018,133269,658.00,Revenue,Corona Energy Retail 2 Ltd,67249
Chorley Borough Council,http://statistics.data.gov.uk/id/local-authority/30UE,Recreation & Sport,1037,Business Development & Growth,Gas,20014,Energy Costs,5006,Sept 18 - Oct 18,31/10/2018,133272,306.80,Revenue,Corona Energy Retail 2 Ltd,67249
Chorley Borough Council,http://statistics.data.gov.uk/id/local-authority/30UE,Capital,Capital,Customer & Digital,Equipment,3014,Capital Expenditure,Capital,240L Neo plastic wheeled bin with Chorley logo Colour : green Quantity : 600 Unit price 15:30,17/10/2018,133069,"9,180.00",Capital,Craemer UK Ltd,64712
Chorley Borough Council,http://statistics.data.gov.uk/id/local-authority/30UE,Capital,Capital,Customer & Digital,Equipment,3014,Capital Expenditure,Capital,140L Neo plastic wheeled bin with Chorley logo.    Colour : GREEN      Quantity : 300 Unit price 11:90,24/10/2018,133111,"1,785.00",Capital,Craemer UK Ltd,64712
Chorley Borough Council,http://statistics.data.gov.uk/id/local-authority/30UE,Capital,Capital,Customer & Digital,Equipment,3014,Capital Expenditure,Capital,140L Neo plastic wheeled bin with Chorley logo.     Colour : BLUE     Quantity : 300 Unit price 11:90,24/10/2018,133111,"1,785.00",Capital,Craemer UK Ltd,64712
Chorley Borough Council,http://statistics.data.gov.uk/id/local-authority/30UE,Tourism,1039,Policy & Governance,Professional Fees,40063,Services,5027,Chorley Flower Show Prize Money,24/10/2018,133281,400.00,Revenue,Craig House Cacti,71499
Chorley Borough Council,http://statistics.data.gov.uk/id/local-authority/30UE,Unapportionable Central OHeads,1009,Policy & Governance,HR Approved Training Expenses,17001,Indirect Employee Expenses,5002,Coaching for Staff 1 October 2018 - plus travel expenses,17/10/2018,133084,785.10,Revenue,Create Edge Ltd,77142
Chorley Borough Council,http://statistics.data.gov.uk/id/local-authority/30UE,Housing Strategy,1069,Business Development & Growth,Training Course Fees,17010,Indirect Employee Expenses,5002,Training Delivery for NAME REDACTED team 8th October 2018,19/10/2018,133158,"1,840.10",Revenue,Create Edge Ltd,77142
Chorley Borough Council,http://statistics.data.gov.uk/id/local-authority/30UE,Capital,Capital,Policy & Governance,Purchase Money,3027,Capital Expenditure,Capital,purchase of ADDRESS REDACTED,17/10/2018,133068,"130,000.00",Capital,Deborah Louise Humphreys,77619
Chorley Borough Council,http://statistics.data.gov.uk/id/local-authority/30UE,Unapportionable Central OHeads,1009,Policy & Governance,Furniture - Purchase,40012,"Equipment, Furniture & Materia",5023,2 X LKS04D28EW4 Silverline 4 door locker 1780h x 458w x 458d Grey supplied with 2 keys Delivery to Democratic Services office,31/10/2018,133352,325.66,Revenue,Diamond Business Interiors Ltd,53722
Chorley Borough Council,http://statistics.data.gov.uk/id/local-authority/30UE,Service Management & Support,1009,Customer & Digital,Petrol,30005,Direct Transport Costs,5016,document 034296 Repair and service to Stihl HL 100 serial no. 500616874 Spark plug Fuel filter air filter rocker cover gasket New,03/10/2018,132717,267.40,Revenue,Dick Leigh,17138
Chorley Borough Council,http://statistics.data.gov.uk/id/local-authority/30UE,Central Support Services,1009,Customer & Digital,Mobile Voice and Data,40086,Communication and Computing,5028,03-Oct-18,17/10/2018,133012,"1,591.54",Revenue,EE - Orange,16486
Chorley Borough Council,http://statistics.data.gov.uk/id/local-authority/30UE,Central Support Services,1009,Customer & Digital,Mobile Voice and Data,40086,Communication and Computing,5028,Oct-18,17/10/2018,133013,"1,522.13",Revenue,EE LIMITED,63366
Chorley Borough Council,http://statistics.data.gov.uk/id/local-authority/30UE,Unapportionable Central OHeads,1009,Business Development & Growth,General Repairs - Reactive,20004,Repairs Maintenance & Alts,5005,Reactive works as of Feb 2018,17/10/2018,132691,"2,403.50",Revenue,Ellesmere Engineering Co Ltd,17520
Chorley Borough Council,http://statistics.data.gov.uk/id/local-authority/30UE,Unapportionable Central OHeads,1009,Business Development & Growth,Planned Maintenance,20006,Repairs Maintenance & Alts,5005,Blanket order for PPM works,24/10/2018,133178,543.95,Revenue,Ellesmere Engineering Co Ltd,17520
Chorley Borough Council,http://statistics.data.gov.uk/id/local-authority/30UE,Unapportionable Central OHeads,1009,Business Development & Growth,Planned Maintenance,20006,Repairs Maintenance & Alts,5005,Blanket PPM order from July 17,31/10/2018,133181,"1,126.50",Revenue,Ellesmere Engineering Co Ltd,17520
Chorley Borough Council,http://statistics.data.gov.uk/id/local-authority/30UE,Corporate Management,1008,Policy & Governance,Conferences - Staff,40120,Expenses,5030,Equality and Diversity Training in Manchester on 13 November.,24/10/2018,133159,395.00,Revenue,Equality and Diversity UK Ltd,77631
Chorley Borough Council,http://statistics.data.gov.uk/id/local-authority/30UE,Capital,Capital,Business Development & Growth,Main Contractor,3007,Capital Expenditure,Capital,Call off 9 � Pre-Construction Service Fees,17/10/2018,132601,"11,348.92",Capital,Eric Wright Construction Ltd,76464
Chorley Borough Council,http://statistics.data.gov.uk/id/local-authority/30UE,Capital,Capital,Business Development & Growth,Main Contractor,3007,Capital Expenditure,Capital,Call off No 8 � Clifford Street Crossing,05/10/2018,132603,"11,509.35",Capital,Eric Wright Construction Ltd,76464
Chorley Borough Council,http://statistics.data.gov.uk/id/local-authority/30UE,Capital,Capital,Business Development & Growth,Main Contractor,3007,Capital Expenditure,Capital,"Friday Street � Resurfacing, drainage improvements & erection of a decked car park as detailed in EWC cost plan",05/10/2018,132604,"295,366.72",Capital,Eric Wright Construction Ltd,76464
Chorley Borough Council,http://statistics.data.gov.uk/id/local-authority/30UE,Capital,Capital,Business Development & Growth,Main Contractor,3007,Capital Expenditure,Capital,Primrose gardens Valuation Statements,05/10/2018,132780,"71,743.32",Capital,Eric Wright Construction Ltd,76464
Chorley Borough Council,http://statistics.data.gov.uk/id/local-authority/30UE,Capital,Capital,Business Development & Growth,Main Contractor,3007,Capital Expenditure,Capital,zero rated,05/10/2018,132780,"580,468.67",Capital,Eric Wright Construction Ltd,76464
Chorley Borough Council,http://statistics.data.gov.uk/id/local-authority/30UE,Capital,Capital,Business Development & Growth,Other Capital Related Fees,3024,Capital Expenditure,Capital,Call off 7 � Chorley Pals Memorial Garden,24/10/2018,133120,"38,785.77",Capital,Eric Wright Construction Ltd,76464
Chorley Borough Council,http://statistics.data.gov.uk/id/local-authority/30UE,Capital,Capital,Business Development & Growth,Main Contractor,3007,Capital Expenditure,Capital,Pre-Construction Service Fees,16/10/2018,133121,"39,765.07",Capital,Eric Wright Construction Ltd,76464
Chorley Borough Council,http://statistics.data.gov.uk/id/local-authority/30UE,Capital,Capital,Business Development & Growth,Main Contractor,3007,Capital Expenditure,Capital,Call off 9 � Pre-Construction Service Fees,24/10/2018,133313,"39,765.07",Capital,Eric Wright Construction Ltd,76464
Chorley Borough Council,http://statistics.data.gov.uk/id/local-authority/30UE,Unapportionable Central OHeads,1009,Customer & Digital,Stationery,40050,"Printing, Stationery & General",5026,200 x Pre Printed Cards Chorley Council Staff ID Badges,05/10/2018,132715,315.00,Revenue,Essentra Security,66416
Chorley Borough Council,http://statistics.data.gov.uk/id/local-authority/30UE,Unapportionable Central OHeads,1009,Policy & Governance,Training Course Fees,17010,Indirect Employee Expenses,5002,Rescue training at the Town Hall Chorley.,24/10/2018,133196,700.00,Revenue,Eurosafe Solutions Limited,66302
Chorley Borough Council,http://statistics.data.gov.uk/id/local-authority/30UE,Recognised Cap Grants & Conts,,Customer & Digital,Contributions Parish Councils,40144,Grants and Subscriptions,5031,cil rec 1/4/18 to 30/9/18,24/10/2018,132910,"43,989.87",Revenue,Euxton Parish Council,16838
Chorley Borough Council,http://statistics.data.gov.uk/id/local-authority/30UE,Capital,Capital,Business Development & Growth,Other Expenses,3030,Capital Expenditure,Capital,"Planting for Friday St/Brunswick St Car Park.  30	Eleagnus x ebbengei	CG5L; 30	Cotoneaster fran  chetii	CG5L; 2	",31/10/2018,133326,"3,629.20",Capital,Everglades Nurseries Ltd,20202
Chorley Borough Council,http://statistics.data.gov.uk/id/local-authority/30UE,Development Control,1091,Policy & Governance,Professional Fees,40063,Services,5027,Professional fees for expert opinion for period July 18 to September 18,24/10/2018,133114,"7,362.50",Revenue,Eversheds Sutherland (International) LLP,17709
Chorley Borough Council,http://statistics.data.gov.uk/id/local-authority/30UE,Tourism,1039,Policy & Governance,Professional Fees,40063,Services,5027,Chorley flower Show Prize Money,24/10/2018,133282,400.00,Revenue,Every Picture Tells A Story,71500
Chorley Borough Council,http://statistics.data.gov.uk/id/local-authority/30UE,Service Management & Support,1009,Customer & Digital,Freight Transport Assoc Fees,40150,Grants and Subscriptions,5031,FTA annual membership subscription,31/10/2018,133400,"1,032.00",Revenue,Freight Transport Assoc Ltd,16333
Chorley Borough Council,http://statistics.data.gov.uk/id/local-authority/30UE,Tourism,1039,Policy & Governance,Professional Fees,40063,Services,5027,Chorley Flower show Prize money,24/10/2018,133280,400.00,Revenue,Garden Blooms,76214
Chorley Borough Council,http://statistics.data.gov.uk/id/local-authority/30UE,Service Management & Support,1009,Customer & Digital,Vehicles and Plant Maintenance,30045,Direct Transport Costs,5016,As per Pro-Forma 195842;  Replacement windscreen for PO14 BFX including new glass and labour,17/10/2018,132697,767.31,Revenue,Gibsons Garden Machinery Ltd,17550
Chorley Borough Council,http://statistics.data.gov.uk/id/local-authority/30UE,Capital,Capital,Business Development & Growth,Consultants Fees,3025,Capital Expenditure,Capital,Design of changing facility and car parking up to RIBA stage 4,24/10/2018,133101,"2,840.39",Capital,Gleeds Management Services Ltd,77165
Chorley Borough Council,http://statistics.data.gov.uk/id/local-authority/30UE,Central Support Services,1009,Early Intervention,Impounded Dogs Costs,40207,Miscellaneous Expenses,5034,Kennel Fees 2018/19,05/10/2018,132879,251.00,Revenue,Glencoe Boarding Kennels,16734
Chorley Borough Council,http://statistics.data.gov.uk/id/local-authority/30UE,Central Support Services,1009,Early Intervention,Vandalism Repairs,20005,Repairs Maintenance & Alts,5005,Contract for Graffiti removal 2017,05/10/2018,132449,255.00,Revenue,Graffiti Away,76316
Chorley Borough Council,http://statistics.data.gov.uk/id/local-authority/30UE,Central Support Services,1009,Early Intervention,Vandalism Repairs,20005,Repairs Maintenance & Alts,5005,Contract for Graffiti removal 2017,17/10/2018,133079,295.00,Revenue,Graffiti Away,76316
Chorley Borough Council,http://statistics.data.gov.uk/id/local-authority/30UE,Capital,Capital,Business Development & Growth,Main Contractor,3007,Capital Expenditure,Capital,jubilee rec fee,31/10/2018,133205,"1,048.44",Capital,Hags Smp LTD,22492
Chorley Borough Council,http://statistics.data.gov.uk/id/local-authority/30UE,Recognised Cap Grants & Conts,,Customer & Digital,Contributions Parish Councils,40144,Grants and Subscriptions,5031,cil rec 1 apr - 30 sept 18,12/10/2018,132909,"2,011.81",Revenue,Heath Charnock Parish Council,16208
Chorley Borough Council,http://statistics.data.gov.uk/id/local-authority/30UE,Recognised Cap Grants & Conts,,Customer & Digital,Contributions Parish Councils,40144,Grants and Subscriptions,5031,cil rec 1/4/18 to 30/9/18,12/10/2018,132907,"1,560.00",Revenue,Heskin Parish Council,17029
Chorley Borough Council,http://statistics.data.gov.uk/id/local-authority/30UE,Central Support Services,1009,Early Intervention,Miscellaneous Expenses,40200,Miscellaneous Expenses,5034,"High Heyes Kennelling fees - Lola (1592) Pug, Ellie (1222) total 362.40",12/10/2018,132964,302.00,Revenue,High Heyes Kennells & Cattery,21663
Chorley Borough Council,http://statistics.data.gov.uk/id/local-authority/30UE,Tourism,1039,Policy & Governance,Professional Fees,40063,Services,5027,flower show prize money,03/10/2018,132637,325.00,Revenue,High Park Nurseries,71509
Chorley Borough Council,http://statistics.data.gov.uk/id/local-authority/30UE,Central Support Services,1009,Business Development & Growth,Professional Fees,40063,Services,5027,Shady Lane project works,31/10/2018,133154,"1,178.13",Revenue,Hive Land & Planning Limited,77330
Chorley Borough Council,http://statistics.data.gov.uk/id/local-authority/30UE,Central Support Services,1009,Business Development & Growth,Professional Fees,40063,Services,5027,Alker Lane project works,31/10/2018,133155,"1,984.50",Revenue,Hive Land & Planning Limited,77330
Chorley Borough Council,http://statistics.data.gov.uk/id/local-authority/30UE,Unapportionable Central OHeads,1009,Policy & Governance,Legal Fees,40171,Miscellaneous Expenses,5034,SDLT due on purchse ADDRESS REDACTED - refugees,05/10/2018,132761,600.00,Revenue,HM Revenue & Customs,56499
Chorley Borough Council,http://statistics.data.gov.uk/id/local-authority/30UE,Capital,Capital,Policy & Governance,Stamp Duty,3026,Capital Expenditure,Capital,ADDRESS REDACTED SDLT,17/10/2018,133014,400.00,Capital,HM Revenue & Customs,56499
Chorley Borough Council,http://statistics.data.gov.uk/id/local-authority/30UE,Open Spaces,1038,Business Development & Growth,Professional Fees,40063,Services,5027,Project work for Westway Sports Campus,12/10/2018,132709,830.00,Revenue,Identity Consult Ltd,76426
Chorley Borough Council,http://statistics.data.gov.uk/id/local-authority/30UE,Elections,1012,Policy & Governance,Service Fees,40056,Services,5027,"IVR - for use with annual canvass 2018 telephone, internet and text responses",03/10/2018,132726,"6,398.11",Revenue,IDOX Software Limited,17542
Chorley Borough Council,http://statistics.data.gov.uk/id/local-authority/30UE,Central Support Services,1009,Customer & Digital,IT Software - Annual Licences,40101,Communication and Computing,5028,1 x days additional technical consultancy @ a day rate of 950 per day. Migrate the customer new virtual server for Oracle,26/10/2018,133015,950.00,Revenue,IDOX Software Limited,17542
Chorley Borough Council,http://statistics.data.gov.uk/id/local-authority/30UE,Central Support Services,1009,Customer & Digital,Consultants` Fees,40077,Services,5027,1 x days additional technical consultancy @ a day rate of 950 per day. In conjunction with the existing Exacom project integrate,19/10/2018,133097,950.00,Revenue,IDOX Software Limited,17542
Chorley Borough Council,http://statistics.data.gov.uk/id/local-authority/30UE,Unapportionable Central OHeads,1009,Customer & Digital,Professional Fees,40063,Services,5027,Analyse LOCAL - one-off RV finder (26 assessments),17/10/2018,132705,"1,000.00",Revenue,Inform CPI Ltd,77179
Chorley Borough Council,http://statistics.data.gov.uk/id/local-authority/30UE,Unapportionable Central OHeads,1009,Policy & Governance,Fixtures & Fittings - Repair/Mtnce,20028,Fixtures and Fittings,5010,Invoice number 32782606 Service period 20/07/18 - 19/07/19 485.36 NET total 582.44  1 x Female airfresh   1 x Male airfresh,10/10/2018,132652,485.36,Revenue,Initial Washroom Solutions,17607
Chorley Borough Council,http://statistics.data.gov.uk/id/local-authority/30UE,Service Management & Support,1009,Customer & Digital,External Contractor,40198,Miscellaneous Expenses,5034,Inspection works to be carried out @ Gough Lane,17/10/2018,132900,304.50,Revenue,J L Hill,17566
Chorley Borough Council,http://statistics.data.gov.uk/id/local-authority/30UE,Business Support,1095,Business Development & Growth,Refuse Collection,20037,Cleaning and Domestic Supplies,5012,Waste Compactor Rental Services @ 270.0 per month for 01 April 2018 - 31 March 2019,03/10/2018,132723,270.00,Revenue,J&H Rentals Limited,70699
Chorley Borough Council,http://statistics.data.gov.uk/id/local-authority/30UE,Business Support,1095,Business Development & Growth,Refuse Collection,20037,Cleaning and Domestic Supplies,5012,Waste Compactor Rental Services @ 270.0 per month for 01 April 2018 - 31 March 2019,05/10/2018,132816,270.00,Revenue,J&H Rentals Limited,70699
Chorley Borough Council,http://statistics.data.gov.uk/id/local-authority/30UE,Business Support,1095,Business Development & Growth,Refuse Collection,20037,Cleaning and Domestic Supplies,5012,Waste Compactor Rental Services @ 270.0 per month for 01 April 2018 - 31 March 2019,10/10/2018,132817,270.00,Revenue,J&H Rentals Limited,70699
Chorley Borough Council,http://statistics.data.gov.uk/id/local-authority/30UE,Corporate Management,1008,Customer & Digital,Other Contributions,40145,Grants and Subscriptions,5031,PLRG,31/10/2018,133347,"2,795.00",Revenue,NAME REDACTED,73914
Chorley Borough Council,http://statistics.data.gov.uk/id/local-authority/30UE,Service Management & Support,1009,Customer & Digital,Supplies-Highways,40026,"Equipment, Furniture & Materia",5023,Supply street name plate posts (1200mm x 76mm) fully galvanised,31/10/2018,133246,906.00,Revenue,Jewsons Limited,17844
Chorley Borough Council,http://statistics.data.gov.uk/id/local-authority/30UE,Service Management & Support,1009,Customer & Digital,Supplies-Grounds Maintenance,40025,"Equipment, Furniture & Materia",5023,20 lengths - 3metresx 100mm duct pipe 20 Polyproplene coupling double socket,31/10/2018,133247,561.88,Revenue,Jewsons Limited,17844
Chorley Borough Council,http://statistics.data.gov.uk/id/local-authority/30UE,Tourism,1039,Policy & Governance,Professional Fees,40063,Services,5027,flower show prize money,24/10/2018,133256,325.00,Revenue,NAME REDACTED,77540
Chorley Borough Council,http://statistics.data.gov.uk/id/local-authority/30UE,Development Control,1091,Customer & Digital,Statutory Notices,40160,Miscellaneous Expenses,5034,Planning Public Notices to appear in the Chorley Guardian April 2018 to March 2019,03/10/2018,132566,337.50,Revenue,Johnston Publishing Ltd,20072
Chorley Borough Council,http://statistics.data.gov.uk/id/local-authority/30UE,Development Control,1091,Customer & Digital,Statutory Notices,40160,Miscellaneous Expenses,5034,Planning Public Notices to appear in the Chorley Guardian April 2018 to March 2019,03/10/2018,132678,405.00,Revenue,Johnston Publishing Ltd,20072
Chorley Borough Council,http://statistics.data.gov.uk/id/local-authority/30UE,Capital,Capital,Business Development & Growth,Equipment,3014,Capital Expenditure,Capital,"Music  /  Story Ball IP600_ Blue colour supply and delivery to Bengal St Depot, Chorley.",10/10/2018,132925,"3,100.00",Capital,Jupiter Play,39514
Chorley Borough Council,http://statistics.data.gov.uk/id/local-authority/30UE,Unapportionable Central OHeads,1009,Business Development & Growth,Planned Maintenance,20006,Repairs Maintenance & Alts,5005,Annual contract renewal 18-19 for Yarrow Biodisc,17/10/2018,133059,657.18,Revenue,Kingspan Water & Energy Ltd,67443
Chorley Borough Council,http://statistics.data.gov.uk/id/local-authority/30UE,Capital,Capital,Business Development & Growth,Other Expenses,3030,Capital Expenditure,Capital,Consultation fees for M&S Foodhall letting,17/10/2018,133078,"12,750.00",Capital,Knight Frank LLP,77571
Chorley Borough Council,http://statistics.data.gov.uk/id/local-authority/30UE,Control Accounts,Control,Policy & Governance,General Balances,100,Balance Sheet,Balance,Monthly Deduction from Expenses,24/10/2018,133277,"1,065.77",Revenue,Labour Councillors Association,17577
Chorley Borough Council,http://statistics.data.gov.uk/id/local-authority/30UE,Precepts and Collection Fund,Precepts,Policy & Governance,LCC Precept,2009,Precepts & Collection Fund,Precept,LCC Council Tax Precept,03/10/2018,132405,"4,777,174.00",Revenue,Lancashire County Council,18386
Chorley Borough Council,http://statistics.data.gov.uk/id/local-authority/30UE,Collection Fund Revenue Accoun,,Policy & Governance,NNDR County Share,2036,Precepts & Collection Fund,Precept,LCC Business Rates Precept,03/10/2018,132405,"208,361.00",Revenue,Lancashire County Council,18386
Chorley Borough Council,http://statistics.data.gov.uk/id/local-authority/30UE,Capital,Capital,Early Intervention,Grants,3002,Capital Expenditure,Capital,ADDRESS REDACTED,03/10/2018,132597,"11,288.00",Capital,Lancashire County Council,17758
Chorley Borough Council,http://statistics.data.gov.uk/id/local-authority/30UE,Capital,Capital,Early Intervention,Grants,3002,Capital Expenditure,Capital,ADDRESS REDACTED,03/10/2018,132756,"3,249.00",Capital,Lancashire County Council,17758
Chorley Borough Council,http://statistics.data.gov.uk/id/local-authority/30UE,Capital,Capital,Early Intervention,Grants,3002,Capital Expenditure,Capital,,03/10/2018,132757,"6,462.00",Capital,Lancashire County Council,17758
Chorley Borough Council,http://statistics.data.gov.uk/id/local-authority/30UE,Capital,Capital,Early Intervention,Grants,3002,Capital Expenditure,Capital,ADDRESS REDACTED,03/10/2018,132785,949.00,Capital,Lancashire County Council,17758
Chorley Borough Council,http://statistics.data.gov.uk/id/local-authority/30UE,Capital,Capital,Early Intervention,Grants,3002,Capital Expenditure,Capital,ADDRESS REDACTED,05/10/2018,132787,"1,828.16",Capital,Lancashire County Council,17758
Chorley Borough Council,http://statistics.data.gov.uk/id/local-authority/30UE,Capital,Capital,Early Intervention,Grants,3002,Capital Expenditure,Capital,ADDRESS REDACTED,10/10/2018,132878,"1,825.75",Capital,Lancashire County Council,17758
Chorley Borough Council,http://statistics.data.gov.uk/id/local-authority/30UE,Corporate Management,1008,Customer & Digital,Clinical Waste Collection,50007,Private Contractors,5042,"Disposal of clinical waste from Chorley household. April 2018 to March 2019.   Yellow bag collections, approx. 500 per   month.",12/10/2018,132902,473.98,Revenue,Lancashire Teaching Hospitals NHS FT,19003
Chorley Borough Council,http://statistics.data.gov.uk/id/local-authority/30UE,Private Sector HSG Renewal,1073,Early Intervention,External Contractor,40198,Miscellaneous Expenses,5034,Provision of Energy Switching Support Service (funded by LCC IHIS) during June 2018,12/10/2018,132976,408.56,Revenue,Lancashire West Citizens Advice Bureaux,17035
Chorley Borough Council,http://statistics.data.gov.uk/id/local-authority/30UE,Private Sector HSG Renewal,1073,Early Intervention,External Contractor,40198,Miscellaneous Expenses,5034,"Provision of Energy Switching Support Service during July 2018, funded via LCC IHIS funds",12/10/2018,132977,464.26,Revenue,Lancashire West Citizens Advice Bureaux,17035
Chorley Borough Council,http://statistics.data.gov.uk/id/local-authority/30UE,Precepts and Collection Fund,Precepts,Policy & Governance,LCFA Precept,2011,Precepts & Collection Fund,Precept,LCFA CTAX Prescept,03/10/2018,132402,"248,922.00",Revenue,Lancs Combined Fire Authority,17768
Chorley Borough Council,http://statistics.data.gov.uk/id/local-authority/30UE,Collection Fund Revenue Accoun,,Policy & Governance,NNDR Fire Share,2037,Precepts & Collection Fund,Precept,LCFA Bus RATES Precept,03/10/2018,132402,"23,151.00",Revenue,Lancs Combined Fire Authority,17768
Chorley Borough Council,http://statistics.data.gov.uk/id/local-authority/30UE,Unapportionable Central OHeads,1009,Policy & Governance,Car Leasing Payment,14100,Direct Employee Expenses,5001,Car Leasing,12/10/2018,132584,"3,239.69",Revenue,LeasePlan UK Ltd T/A Automotive Leasing,65197
Chorley Borough Council,http://statistics.data.gov.uk/id/local-authority/30UE,Unapportionable Central OHeads,1009,Policy & Governance,Car Leasing Payment,14100,Direct Employee Expenses,5001,VAT,12/10/2018,132584,295.65,Revenue,LeasePlan UK Ltd T/A Automotive Leasing,65197
Chorley Borough Council,http://statistics.data.gov.uk/id/local-authority/30UE,Control Accounts,Control,Policy & Governance,Manual Control Account,1,Balance Sheet,Balance,VAT,12/10/2018,132584,-295.65,Revenue,LeasePlan UK Ltd T/A Automotive Leasing,65197
Chorley Borough Council,http://statistics.data.gov.uk/id/local-authority/30UE,Unapportionable Central OHeads,1009,Policy & Governance,Car Leasing Payment,14100,Direct Employee Expenses,5001,NAME REDACTED,10/10/2018,132638,"2,553.93",Revenue,LeasePlan UK Ltd T/A Automotive Leasing,65197
Chorley Borough Council,http://statistics.data.gov.uk/id/local-authority/30UE,Unapportionable Central OHeads,1009,Policy & Governance,Car Leasing Payment,14100,Direct Employee Expenses,5001,VAT,10/10/2018,132638,214.75,Revenue,LeasePlan UK Ltd T/A Automotive Leasing,65197
Chorley Borough Council,http://statistics.data.gov.uk/id/local-authority/30UE,Central Support Services,1009,Policy & Governance,Car Leasing Payment,14100,Direct Employee Expenses,5001,Car Leasing,12/10/2018,132789,"2,624.85",Revenue,LeasePlan UK Ltd T/A Automotive Leasing,65197
Chorley Borough Council,http://statistics.data.gov.uk/id/local-authority/30UE,Central Support Services,1009,Policy & Governance,Car Leasing Payment,14100,Direct Employee Expenses,5001,VAT,12/10/2018,132789,217.60,Revenue,LeasePlan UK Ltd T/A Automotive Leasing,65197
Chorley Borough Council,http://statistics.data.gov.uk/id/local-authority/30UE,Unapportionable Central OHeads,1009,Policy & Governance,Car Leasing Payment,14100,Direct Employee Expenses,5001,Annual Rental,31/10/2018,133298,"1,923.01",Revenue,LeasePlan UK Ltd T/A Automotive Leasing,65197
Chorley Borough Council,http://statistics.data.gov.uk/id/local-authority/30UE,Unapportionable Central OHeads,1009,Policy & Governance,Car Leasing Payment,14100,Direct Employee Expenses,5001,VAT,31/10/2018,133298,170.25,Revenue,LeasePlan UK Ltd T/A Automotive Leasing,65197
Chorley Borough Council,http://statistics.data.gov.uk/id/local-authority/30UE,Democratic Represent and  Mgnt,1007,Policy & Governance,Car Leasing Payment,14100,Direct Employee Expenses,5001,NAME REDACTED,10/10/2018,132639,"3,260.76",Revenue,Lex Autolease Ltd,70682
Chorley Borough Council,http://statistics.data.gov.uk/id/local-authority/30UE,Democratic Represent and  Mgnt,1007,Policy & Governance,Car Leasing Payment,14100,Direct Employee Expenses,5001,vat,10/10/2018,132639,293.22,Revenue,Lex Autolease Ltd,70682
Chorley Borough Council,http://statistics.data.gov.uk/id/local-authority/30UE,Unapportionable Central OHeads,1009,Policy & Governance,Car Leasing Payment,14100,Direct Employee Expenses,5001,NAME REDACTED,10/10/2018,132639,"3,390.00",Revenue,Lex Autolease Ltd,70682
Chorley Borough Council,http://statistics.data.gov.uk/id/local-authority/30UE,Unapportionable Central OHeads,1009,Policy & Governance,Car Leasing Payment,14100,Direct Employee Expenses,5001,vat,10/10/2018,132639,302.69,Revenue,Lex Autolease Ltd,70682
Chorley Borough Council,http://statistics.data.gov.uk/id/local-authority/30UE,Corporate Management,1008,Policy & Governance,Treasury Management Service,40065,Services,5027,Treasury Management Services for the period 01/04/2018 to 31/03/2019,10/10/2018,132962,"7,275.00",Revenue,Link Treasury Services Limited,16428
Chorley Borough Council,http://statistics.data.gov.uk/id/local-authority/30UE,Community Development,1097,Policy & Governance,Grants To Other Organisations,40127,Grants and Subscriptions,5031,"Support for the Living Waters storehouse food provision - to be paid in two instalments of 7,500",24/10/2018,133099,"7,500.00",Revenue,Living Waters Storehouse,60925
Chorley Borough Council,http://statistics.data.gov.uk/id/local-authority/30UE,Service Management & Support,1009,Customer & Digital,Grounds Maintenance Contractor,20043,Grounds Maintenance Costs,5013,Tree works for September 2018 - invoice 36,31/10/2018,133305,"2,870.00",Revenue,M J Walker,62044
Chorley Borough Council,http://statistics.data.gov.uk/id/local-authority/30UE,Capital,Capital,Early Intervention,Grants,3002,Capital Expenditure,Capital,ADDRESS REDACTED,10/10/2018,132876,"3,832.00",Capital,M.J Park Building Contractors,20367
Chorley Borough Council,http://statistics.data.gov.uk/id/local-authority/30UE,Central Support Services,1009,Early Intervention,Miscellaneous Expenses,40200,Miscellaneous Expenses,5034,PCC Funding ..... CPW Training for Chorley Council Staff/Housing/Police to be delivered in partnership with SRBC.,19/10/2018,133110,975.00,Revenue,Mallard Consultancy LTD,76458
Chorley Borough Council,http://statistics.data.gov.uk/id/local-authority/30UE,Economic Development,1096,Business Development & Growth,Conferences - Staff,40120,Expenses,5030,"For cost of participation in MIPIM with Marketing Lancashire, and associated hotel costs.",31/10/2018,133395,"1,700.00",Revenue,Marketing Lancashire,65208
Chorley Borough Council,http://statistics.data.gov.uk/id/local-authority/30UE,Central Support Services,1009,Policy & Governance,Agency Staff,13000,Direct Employee Expenses,5001,AGENCY COST,03/10/2018,132788,348.80,Revenue,Matrix SCM Ltd,22128
Chorley Borough Council,http://statistics.data.gov.uk/id/local-authority/30UE,Unapportionable Central OHeads,1009,Policy & Governance,Agency Staff,13000,Direct Employee Expenses,5001,AGENCY COST,03/10/2018,132788,359.09,Revenue,Matrix SCM Ltd,22128
Chorley Borough Council,http://statistics.data.gov.uk/id/local-authority/30UE,Central Support Services,1009,Policy & Governance,Agency Staff,13000,Direct Employee Expenses,5001,AGENCY COST,03/10/2018,132788,22.79,Revenue,Matrix SCM Ltd,22128
Chorley Borough Council,http://statistics.data.gov.uk/id/local-authority/30UE,Central Support Services,1009,Policy & Governance,Agency Staff,13000,Direct Employee Expenses,5001,AGENCY COST,03/10/2018,132788,884.86,Revenue,Matrix SCM Ltd,22128
Chorley Borough Council,http://statistics.data.gov.uk/id/local-authority/30UE,Unapportionable Central OHeads,1009,Policy & Governance,Agency Staff,13000,Direct Employee Expenses,5001,AGENCY COST,03/10/2018,132788,730.45,Revenue,Matrix SCM Ltd,22128
Chorley Borough Council,http://statistics.data.gov.uk/id/local-authority/30UE,Central Support Services,1009,Policy & Governance,Agency Staff,13000,Direct Employee Expenses,5001,AGENCY COST - mileage,10/10/2018,132875,20.64,Revenue,Matrix SCM Ltd,22128
Chorley Borough Council,http://statistics.data.gov.uk/id/local-authority/30UE,Central Support Services,1009,Policy & Governance,Agency Staff,13000,Direct Employee Expenses,5001,AGENCY COST,10/10/2018,132875,884.87,Revenue,Matrix SCM Ltd,22128
Chorley Borough Council,http://statistics.data.gov.uk/id/local-authority/30UE,Unapportionable Central OHeads,1009,Policy & Governance,Agency Staff,13000,Direct Employee Expenses,5001,AGENCY COST,10/10/2018,132875,730.45,Revenue,Matrix SCM Ltd,22128
Chorley Borough Council,http://statistics.data.gov.uk/id/local-authority/30UE,Central Support Services,1009,Policy & Governance,Agency Staff,13000,Direct Employee Expenses,5001,AGENCY COST,24/10/2018,133104,348.80,Revenue,Matrix SCM Ltd,22128
Chorley Borough Council,http://statistics.data.gov.uk/id/local-authority/30UE,Central Support Services,1009,Policy & Governance,Agency Staff,13000,Direct Employee Expenses,5001,AGENCY COST,24/10/2018,133104,348.80,Revenue,Matrix SCM Ltd,22128
Chorley Borough Council,http://statistics.data.gov.uk/id/local-authority/30UE,Unapportionable Central OHeads,1009,Policy & Governance,Agency Staff,13000,Direct Employee Expenses,5001,AEGNCY COST,24/10/2018,133104,310.81,Revenue,Matrix SCM Ltd,22128
Chorley Borough Council,http://statistics.data.gov.uk/id/local-authority/30UE,Unapportionable Central OHeads,1009,Policy & Governance,Agency Staff,13000,Direct Employee Expenses,5001,AGENCY COST,24/10/2018,133104,344.01,Revenue,Matrix SCM Ltd,22128
Chorley Borough Council,http://statistics.data.gov.uk/id/local-authority/30UE,Central Support Services,1009,Policy & Governance,Agency Staff,13000,Direct Employee Expenses,5001,AGENCY COST,24/10/2018,133104,22.36,Revenue,Matrix SCM Ltd,22128
Chorley Borough Council,http://statistics.data.gov.uk/id/local-authority/30UE,Central Support Services,1009,Policy & Governance,Agency Staff,13000,Direct Employee Expenses,5001,AGENCY COST,24/10/2018,133104,884.88,Revenue,Matrix SCM Ltd,22128
Chorley Borough Council,http://statistics.data.gov.uk/id/local-authority/30UE,Unapportionable Central OHeads,1009,Policy & Governance,Agency Staff,13000,Direct Employee Expenses,5001,AGENCY COST,24/10/2018,133104,730.45,Revenue,Matrix SCM Ltd,22128
Chorley Borough Council,http://statistics.data.gov.uk/id/local-authority/30UE,Central Support Services,1009,Policy & Governance,Agency Staff,13000,Direct Employee Expenses,5001,AGENCY COST,24/10/2018,133166,348.80,Revenue,Matrix SCM Ltd,22128
Chorley Borough Council,http://statistics.data.gov.uk/id/local-authority/30UE,Central Support Services,1009,Policy & Governance,Agency Staff,13000,Direct Employee Expenses,5001,AGENCy COST,24/10/2018,133166,29.24,Revenue,Matrix SCM Ltd,22128
Chorley Borough Council,http://statistics.data.gov.uk/id/local-authority/30UE,Central Support Services,1009,Policy & Governance,Agency Staff,13000,Direct Employee Expenses,5001,AGENCY COST,24/10/2018,133166,884.85,Revenue,Matrix SCM Ltd,22128
Chorley Borough Council,http://statistics.data.gov.uk/id/local-authority/30UE,Unapportionable Central OHeads,1009,Policy & Governance,Agency Staff,13000,Direct Employee Expenses,5001,AGENCY COST,24/10/2018,133166,730.45,Revenue,Matrix SCM Ltd,22128
Chorley Borough Council,http://statistics.data.gov.uk/id/local-authority/30UE,Unapportionable Central OHeads,1009,Policy & Governance,Agency Staff,13000,Direct Employee Expenses,5001,AGENCY COST,31/10/2018,133361,340.97,Revenue,Matrix SCM Ltd,22128
Chorley Borough Council,http://statistics.data.gov.uk/id/local-authority/30UE,Unapportionable Central OHeads,1009,Policy & Governance,Agency Staff,13000,Direct Employee Expenses,5001,AGENCY COST,31/10/2018,133361,262.53,Revenue,Matrix SCM Ltd,22128
Chorley Borough Council,http://statistics.data.gov.uk/id/local-authority/30UE,Central Support Services,1009,Policy & Governance,Agency Staff,13000,Direct Employee Expenses,5001,AGENCY COST,31/10/2018,133361,27.52,Revenue,Matrix SCM Ltd,22128
Chorley Borough Council,http://statistics.data.gov.uk/id/local-authority/30UE,Central Support Services,1009,Policy & Governance,Agency Staff,13000,Direct Employee Expenses,5001,AGENCY COST,31/10/2018,133361,884.86,Revenue,Matrix SCM Ltd,22128
Chorley Borough Council,http://statistics.data.gov.uk/id/local-authority/30UE,Unapportionable Central OHeads,1009,Policy & Governance,Agency Staff,13000,Direct Employee Expenses,5001,AGENCY COST,31/10/2018,133361,730.45,Revenue,Matrix SCM Ltd,22128
Chorley Borough Council,http://statistics.data.gov.uk/id/local-authority/30UE,Unapportionable Central OHeads,1009,Business Development & Growth,Planned Maintenance,20006,Repairs Maintenance & Alts,5005,Annual Purchase order for water monitoring,31/10/2018,133189,601.24,Revenue,Maxigiene Environmental Services Ltd,67160
Chorley Borough Council,http://statistics.data.gov.uk/id/local-authority/30UE,Democratic Represent and  Mgnt,1007,Business Development & Growth,Maintenance/Nature Reserves,20045,Grounds Maintenance Costs,5013,Supply and delivery of 6nr grab bags 20mm - dust limestone and 9nr grab bags of top soil for the Woodland Walk Nature Trail ,03/10/2018,132711,891.00,Revenue,Mc & Ma Stewart (Haulage Ltd),16627
Chorley Borough Council,http://statistics.data.gov.uk/id/local-authority/30UE,Democratic Represent and  Mgnt,1007,Business Development & Growth,Maintenance/Nature Reserves,20045,Grounds Maintenance Costs,5013,5 nr bulk bags of 20mm - dust Limestone,05/10/2018,132741,285.00,Revenue,Mc & Ma Stewart (Haulage Ltd),16627
Chorley Borough Council,http://statistics.data.gov.uk/id/local-authority/30UE,Capital,Capital,Policy & Governance,Purchase Money,3027,Capital Expenditure,Capital,purchase of freehold to ADDRESS REDACTED & leasehold of small parcel adjacment,03/10/2018,132328,"155,000.00",Capital,Miller Homes Ltd,77545
Chorley Borough Council,http://statistics.data.gov.uk/id/local-authority/30UE,Collection Fund Revenue Accoun,,Policy & Governance,NNDR Central Share,2034,Precepts & Collection Fund,Precept,Central Share BR,03/10/2018,132552,"982,631.00",Revenue,Ministry of Housing Communities & Local Government,16280
Chorley Borough Council,http://statistics.data.gov.uk/id/local-authority/30UE,Collection Fund Revenue Accoun,,Policy & Governance,Transitional Protection,2033,Precepts & Collection Fund,Precept,Transitional Relief,03/10/2018,132552,"79,169.00",Revenue,Ministry of Housing Communities & Local Government,16280
Chorley Borough Council,http://statistics.data.gov.uk/id/local-authority/30UE,Capital,Capital,Early Intervention,Grants,3002,Capital Expenditure,Capital,ADDRESS REDACTED,05/10/2018,132765,"3,811.12",Capital,Mint Northwest Ltd,65607
Chorley Borough Council,http://statistics.data.gov.uk/id/local-authority/30UE,Capital,Capital,Early Intervention,Grants,3002,Capital Expenditure,Capital,ADDRESS REDACTED,05/10/2018,132790,"4,404.41",Capital,Mint Northwest Ltd,65607
Chorley Borough Council,http://statistics.data.gov.uk/id/local-authority/30UE,Capital,Capital,Early Intervention,Grants,3002,Capital Expenditure,Capital,ADDRESS REDACTED,05/10/2018,132791,"3,714.91",Capital,Mint Northwest Ltd,65607
Chorley Borough Council,http://statistics.data.gov.uk/id/local-authority/30UE,Private Sector HSG Renewal,1073,Early Intervention,External Contractor,40198,Miscellaneous Expenses,5034,ref;25122,12/10/2018,132906,360.00,Revenue,Mobility Care Services,70841
Chorley Borough Council,http://statistics.data.gov.uk/id/local-authority/30UE,Private Sector HSG Renewal,1073,Early Intervention,External Contractor,40198,Miscellaneous Expenses,5034,ref;25123,12/10/2018,132906,128.00,Revenue,Mobility Care Services,70841
Chorley Borough Council,http://statistics.data.gov.uk/id/local-authority/30UE,Private Sector HSG Renewal,1073,Early Intervention,External Contractor,40198,Miscellaneous Expenses,5034,ref;25124,12/10/2018,132906,128.00,Revenue,Mobility Care Services,70841
Chorley Borough Council,http://statistics.data.gov.uk/id/local-authority/30UE,Private Sector HSG Renewal,1073,Early Intervention,External Contractor,40198,Miscellaneous Expenses,5034,ref;25125,12/10/2018,132906,180.00,Revenue,Mobility Care Services,70841
Chorley Borough Council,http://statistics.data.gov.uk/id/local-authority/30UE,Private Sector HSG Renewal,1073,Early Intervention,External Contractor,40198,Miscellaneous Expenses,5034,ref;25126,12/10/2018,132906,66.00,Revenue,Mobility Care Services,70841
Chorley Borough Council,http://statistics.data.gov.uk/id/local-authority/30UE,Private Sector HSG Renewal,1073,Early Intervention,External Contractor,40198,Miscellaneous Expenses,5034,ref;25127,12/10/2018,132906,128.00,Revenue,Mobility Care Services,70841
Chorley Borough Council,http://statistics.data.gov.uk/id/local-authority/30UE,Private Sector HSG Renewal,1073,Early Intervention,External Contractor,40198,Miscellaneous Expenses,5034,ref;25138,12/10/2018,132906,66.00,Revenue,Mobility Care Services,70841
Chorley Borough Council,http://statistics.data.gov.uk/id/local-authority/30UE,Private Sector HSG Renewal,1073,Early Intervention,External Contractor,40198,Miscellaneous Expenses,5034,ref;25139,12/10/2018,132906,140.00,Revenue,Mobility Care Services,70841
Chorley Borough Council,http://statistics.data.gov.uk/id/local-authority/30UE,Private Sector HSG Renewal,1073,Early Intervention,External Contractor,40198,Miscellaneous Expenses,5034,ref;25140,12/10/2018,132906,280.00,Revenue,Mobility Care Services,70841
Chorley Borough Council,http://statistics.data.gov.uk/id/local-authority/30UE,Private Sector HSG Renewal,1073,Early Intervention,External Contractor,40198,Miscellaneous Expenses,5034,ref;25141,12/10/2018,132906,128.00,Revenue,Mobility Care Services,70841
Chorley Borough Council,http://statistics.data.gov.uk/id/local-authority/30UE,Private Sector HSG Renewal,1073,Early Intervention,External Contractor,40198,Miscellaneous Expenses,5034,ref;25147,12/10/2018,132906,111.00,Revenue,Mobility Care Services,70841
Chorley Borough Council,http://statistics.data.gov.uk/id/local-authority/30UE,Private Sector HSG Renewal,1073,Early Intervention,External Contractor,40198,Miscellaneous Expenses,5034,ref;25148,12/10/2018,132906,222.00,Revenue,Mobility Care Services,70841
Chorley Borough Council,http://statistics.data.gov.uk/id/local-authority/30UE,Private Sector HSG Renewal,1073,Early Intervention,External Contractor,40198,Miscellaneous Expenses,5034,ref;25149,12/10/2018,132906,111.00,Revenue,Mobility Care Services,70841
Chorley Borough Council,http://statistics.data.gov.uk/id/local-authority/30UE,Private Sector HSG Renewal,1073,Early Intervention,External Contractor,40198,Miscellaneous Expenses,5034,ref;25150,12/10/2018,132906,132.00,Revenue,Mobility Care Services,70841
Chorley Borough Council,http://statistics.data.gov.uk/id/local-authority/30UE,Private Sector HSG Renewal,1073,Early Intervention,External Contractor,40198,Miscellaneous Expenses,5034,ref;25151,12/10/2018,132906,180.00,Revenue,Mobility Care Services,70841
Chorley Borough Council,http://statistics.data.gov.uk/id/local-authority/30UE,Private Sector HSG Renewal,1073,Early Intervention,External Contractor,40198,Miscellaneous Expenses,5034,ref;25164,12/10/2018,132906,256.00,Revenue,Mobility Care Services,70841
Chorley Borough Council,http://statistics.data.gov.uk/id/local-authority/30UE,Private Sector HSG Renewal,1073,Early Intervention,External Contractor,40198,Miscellaneous Expenses,5034,ref;25163,12/10/2018,132906,128.00,Revenue,Mobility Care Services,70841
Chorley Borough Council,http://statistics.data.gov.uk/id/local-authority/30UE,Private Sector HSG Renewal,1073,Early Intervention,External Contractor,40198,Miscellaneous Expenses,5034,ref;25162,12/10/2018,132906,111.00,Revenue,Mobility Care Services,70841
Chorley Borough Council,http://statistics.data.gov.uk/id/local-authority/30UE,Private Sector HSG Renewal,1073,Early Intervention,External Contractor,40198,Miscellaneous Expenses,5034,ref;25161,12/10/2018,132906,111.00,Revenue,Mobility Care Services,70841
Chorley Borough Council,http://statistics.data.gov.uk/id/local-authority/30UE,Private Sector HSG Renewal,1073,Early Intervention,External Contractor,40198,Miscellaneous Expenses,5034,ref;25160,12/10/2018,132906,256.00,Revenue,Mobility Care Services,70841
Chorley Borough Council,http://statistics.data.gov.uk/id/local-authority/30UE,Private Sector HSG Renewal,1073,Early Intervention,External Contractor,40198,Miscellaneous Expenses,5034,ref;25159,12/10/2018,132906,80.00,Revenue,Mobility Care Services,70841
Chorley Borough Council,http://statistics.data.gov.uk/id/local-authority/30UE,Private Sector HSG Renewal,1073,Early Intervention,External Contractor,40198,Miscellaneous Expenses,5034,ref;25158,12/10/2018,132906,111.00,Revenue,Mobility Care Services,70841
Chorley Borough Council,http://statistics.data.gov.uk/id/local-authority/30UE,Private Sector HSG Renewal,1073,Early Intervention,External Contractor,40198,Miscellaneous Expenses,5034,ref;25157,12/10/2018,132906,128.00,Revenue,Mobility Care Services,70841
Chorley Borough Council,http://statistics.data.gov.uk/id/local-authority/30UE,Private Sector HSG Renewal,1073,Early Intervention,External Contractor,40198,Miscellaneous Expenses,5034,ref;25169,12/10/2018,132906,66.00,Revenue,Mobility Care Services,70841
Chorley Borough Council,http://statistics.data.gov.uk/id/local-authority/30UE,Private Sector HSG Renewal,1073,Early Intervention,External Contractor,40198,Miscellaneous Expenses,5034,ref;25170,12/10/2018,132906,140.00,Revenue,Mobility Care Services,70841
Chorley Borough Council,http://statistics.data.gov.uk/id/local-authority/30UE,Private Sector HSG Renewal,1073,Early Intervention,External Contractor,40198,Miscellaneous Expenses,5034,ref;25171,12/10/2018,132906,66.00,Revenue,Mobility Care Services,70841
Chorley Borough Council,http://statistics.data.gov.uk/id/local-authority/30UE,Private Sector HSG Renewal,1073,Early Intervention,External Contractor,40198,Miscellaneous Expenses,5034,ref;25172,12/10/2018,132906,66.00,Revenue,Mobility Care Services,70841
Chorley Borough Council,http://statistics.data.gov.uk/id/local-authority/30UE,Private Sector HSG Renewal,1073,Early Intervention,External Contractor,40198,Miscellaneous Expenses,5034,ref;25184,12/10/2018,132906,280.00,Revenue,Mobility Care Services,70841
Chorley Borough Council,http://statistics.data.gov.uk/id/local-authority/30UE,Private Sector HSG Renewal,1073,Early Intervention,External Contractor,40198,Miscellaneous Expenses,5034,ref;25193,12/10/2018,132906,128.00,Revenue,Mobility Care Services,70841
Chorley Borough Council,http://statistics.data.gov.uk/id/local-authority/30UE,Private Sector HSG Renewal,1073,Early Intervention,External Contractor,40198,Miscellaneous Expenses,5034,ref;25194,12/10/2018,132906,128.00,Revenue,Mobility Care Services,70841
Chorley Borough Council,http://statistics.data.gov.uk/id/local-authority/30UE,Private Sector HSG Renewal,1073,Early Intervention,External Contractor,40198,Miscellaneous Expenses,5034,ref;25195,12/10/2018,132906,128.00,Revenue,Mobility Care Services,70841
Chorley Borough Council,http://statistics.data.gov.uk/id/local-authority/30UE,Private Sector HSG Renewal,1073,Early Intervention,External Contractor,40198,Miscellaneous Expenses,5034,ref;25196,12/10/2018,132906,512.00,Revenue,Mobility Care Services,70841
Chorley Borough Council,http://statistics.data.gov.uk/id/local-authority/30UE,Private Sector HSG Renewal,1073,Early Intervention,External Contractor,40198,Miscellaneous Expenses,5034,ref;25206,12/10/2018,132906,132.00,Revenue,Mobility Care Services,70841
Chorley Borough Council,http://statistics.data.gov.uk/id/local-authority/30UE,Private Sector HSG Renewal,1073,Early Intervention,External Contractor,40198,Miscellaneous Expenses,5034,ref;25232,12/10/2018,132906,132.00,Revenue,Mobility Care Services,70841
Chorley Borough Council,http://statistics.data.gov.uk/id/local-authority/30UE,Private Sector HSG Renewal,1073,Early Intervention,External Contractor,40198,Miscellaneous Expenses,5034,ref;25231,12/10/2018,132906,66.00,Revenue,Mobility Care Services,70841
Chorley Borough Council,http://statistics.data.gov.uk/id/local-authority/30UE,Private Sector HSG Renewal,1073,Early Intervention,External Contractor,40198,Miscellaneous Expenses,5034,ref;25230,12/10/2018,132906,66.00,Revenue,Mobility Care Services,70841
Chorley Borough Council,http://statistics.data.gov.uk/id/local-authority/30UE,Private Sector HSG Renewal,1073,Early Intervention,External Contractor,40198,Miscellaneous Expenses,5034,ref;25229,12/10/2018,132906,111.00,Revenue,Mobility Care Services,70841
Chorley Borough Council,http://statistics.data.gov.uk/id/local-authority/30UE,Private Sector HSG Renewal,1073,Early Intervention,External Contractor,40198,Miscellaneous Expenses,5034,ref;25228,12/10/2018,132906,120.00,Revenue,Mobility Care Services,70841
Chorley Borough Council,http://statistics.data.gov.uk/id/local-authority/30UE,Private Sector HSG Renewal,1073,Early Intervention,External Contractor,40198,Miscellaneous Expenses,5034,ref;25227,12/10/2018,132906,111.00,Revenue,Mobility Care Services,70841
Chorley Borough Council,http://statistics.data.gov.uk/id/local-authority/30UE,Private Sector HSG Renewal,1073,Early Intervention,External Contractor,40198,Miscellaneous Expenses,5034,ref;25226,12/10/2018,132906,256.00,Revenue,Mobility Care Services,70841
Chorley Borough Council,http://statistics.data.gov.uk/id/local-authority/30UE,Private Sector HSG Renewal,1073,Early Intervention,External Contractor,40198,Miscellaneous Expenses,5034,ref;25225,12/10/2018,132906,86.00,Revenue,Mobility Care Services,70841
Chorley Borough Council,http://statistics.data.gov.uk/id/local-authority/30UE,Private Sector HSG Renewal,1073,Early Intervention,External Contractor,40198,Miscellaneous Expenses,5034,ref;25224,12/10/2018,132906,256.00,Revenue,Mobility Care Services,70841
Chorley Borough Council,http://statistics.data.gov.uk/id/local-authority/30UE,Private Sector HSG Renewal,1073,Early Intervention,External Contractor,40198,Miscellaneous Expenses,5034,ref;25223,12/10/2018,132906,86.00,Revenue,Mobility Care Services,70841
Chorley Borough Council,http://statistics.data.gov.uk/id/local-authority/30UE,Private Sector HSG Renewal,1073,Early Intervention,External Contractor,40198,Miscellaneous Expenses,5034,ref;25222,12/10/2018,132906,128.00,Revenue,Mobility Care Services,70841
Chorley Borough Council,http://statistics.data.gov.uk/id/local-authority/30UE,Private Sector HSG Renewal,1073,Early Intervention,External Contractor,40198,Miscellaneous Expenses,5034,ref;25221,12/10/2018,132906,66.00,Revenue,Mobility Care Services,70841
Chorley Borough Council,http://statistics.data.gov.uk/id/local-authority/30UE,Private Sector HSG Renewal,1073,Early Intervention,External Contractor,40198,Miscellaneous Expenses,5034,ref;25220,12/10/2018,132906,256.00,Revenue,Mobility Care Services,70841
Chorley Borough Council,http://statistics.data.gov.uk/id/local-authority/30UE,Private Sector HSG Renewal,1073,Early Intervention,External Contractor,40198,Miscellaneous Expenses,5034,ref;25219,12/10/2018,132906,128.00,Revenue,Mobility Care Services,70841
Chorley Borough Council,http://statistics.data.gov.uk/id/local-authority/30UE,Private Sector HSG Renewal,1073,Early Intervention,External Contractor,40198,Miscellaneous Expenses,5034,ref;25218,12/10/2018,132906,320.00,Revenue,Mobility Care Services,70841
Chorley Borough Council,http://statistics.data.gov.uk/id/local-authority/30UE,Private Sector HSG Renewal,1073,Early Intervention,External Contractor,40198,Miscellaneous Expenses,5034,ref;25217,12/10/2018,132906,220.00,Revenue,Mobility Care Services,70841
Chorley Borough Council,http://statistics.data.gov.uk/id/local-authority/30UE,Private Sector HSG Renewal,1073,Early Intervention,External Contractor,40198,Miscellaneous Expenses,5034,ref;25246,12/10/2018,132906,256.00,Revenue,Mobility Care Services,70841
Chorley Borough Council,http://statistics.data.gov.uk/id/local-authority/30UE,Central Support Services,1009,Early Intervention,Miscellaneous Expenses,40200,Miscellaneous Expenses,5034,"Alleygate scheme new locks/gearboxes 3xslam lock gearboxes, 3 x high security euro cyclinders, 35 keys",31/10/2018,133417,685.00,Revenue,Morris Locksmiths,22567
Chorley Borough Council,http://statistics.data.gov.uk/id/local-authority/30UE,Service Management & Support,1009,Customer & Digital,Training Course Fees,17010,Indirect Employee Expenses,5002,"Refresher training courses as agreed with NAME REDACTED 2 x Chainsaw Maintenance, Cross Cutting and Felling up to 380mm",12/10/2018,132915,"1,098.00",Revenue,Morton Training Limited,76873
Chorley Borough Council,http://statistics.data.gov.uk/id/local-authority/30UE,Service Management & Support,1009,Customer & Digital,Training Course Fees,17010,Indirect Employee Expenses,5002,"Refresher training courses as agreed with NAME REDACTED; 2 x Chainsaw Maintenance, Cross Cutting & Felling up to 380mm",31/10/2018,132971,"1,098.00",Revenue,Morton Training Limited,76873
Chorley Borough Council,http://statistics.data.gov.uk/id/local-authority/30UE,Service Management & Support,1009,Customer & Digital,Training Course Fees,17010,Indirect Employee Expenses,5002,"Refresher training courses as agreed with NAME REDACTED; 2 x Chainsaw Maintenance, Cross Cutting & Felling up to 380mm",31/10/2018,133058,559.00,Revenue,Morton Training Limited,76873
Chorley Borough Council,http://statistics.data.gov.uk/id/local-authority/30UE,Private Sector HSG Renewal,1073,Early Intervention,Miscellaneous Expenses,40200,Miscellaneous Expenses,5034,grant affordable warmth,12/10/2018,132969,500.00,Revenue,NAME REDACTED,77622
Chorley Borough Council,http://statistics.data.gov.uk/id/local-authority/30UE,Unapportionable Central OHeads,1009,Policy & Governance,Exhibitions & Special Events,40158,Miscellaneous Expenses,5034,"PA Hire 29 September, 4 October, 5 October",19/10/2018,133102,450.00,Revenue,MR S M FIELD,77632
Chorley Borough Council,http://statistics.data.gov.uk/id/local-authority/30UE,Service Management & Support,1009,Customer & Digital,Grounds Maintenance Contractor,20043,Grounds Maintenance Costs,5013,"Ginnel clearing, scraping the surface and removing the waste.. Primrose Gardens, Chorley",31/10/2018,133138,400.00,Revenue,Mr Stephen Scambler,16710
Chorley Borough Council,http://statistics.data.gov.uk/id/local-authority/30UE,Service Management & Support,1009,Customer & Digital,Grounds Maintenance Contractor,20043,Grounds Maintenance Costs,5013,materials,31/10/2018,133138,700.00,Revenue,Mr Stephen Scambler,16710
Chorley Borough Council,http://statistics.data.gov.uk/id/local-authority/30UE,Unapportionable Central OHeads,1009,Policy & Governance,Exhibitions & Special Events,40158,Miscellaneous Expenses,5034,Chorley Live Programmes Estimate 23855,03/10/2018,132753,"1,200.00",Revenue,N B Colour Print Ltd,17917
Chorley Borough Council,http://statistics.data.gov.uk/id/local-authority/30UE,Unapportionable Central OHeads,1009,Chief Executive,Furniture - Maintenance,40014,"Equipment, Furniture & Materia",5023,Annual Support on NFS 330 Franking machine From October 2018 to September 2019,03/10/2018,132786,390.00,Revenue,Nationwide Franking Sense,22546
Chorley Borough Council,http://statistics.data.gov.uk/id/local-authority/30UE,Unapportionable Central OHeads,1009,Policy & Governance,Exhibitions & Special Events,40158,Miscellaneous Expenses,5034,Security for event on Friday 4 and Saturday 5 October,19/10/2018,133083,468.75,Revenue,New Concept Security Ltd,77501
Chorley Borough Council,http://statistics.data.gov.uk/id/local-authority/30UE,Corporate Management,1008,Customer & Digital,"Hackney Badges, Plates Etc.",40023,"Equipment, Furniture & Materia",5023,Private Hire door signs to include tamper evident hologram and cover  x40,24/10/2018,133198,275.20,Revenue,NewAuto Ltd t/a MOGO UK,17187
Chorley Borough Council,http://statistics.data.gov.uk/id/local-authority/30UE,Corporate Management,1008,Customer & Digital,"Hackney Badges, Plates Etc.",40023,"Equipment, Furniture & Materia",5023,postage,24/10/2018,133198,14.90,Revenue,NewAuto Ltd t/a MOGO UK,17187
Chorley Borough Council,http://statistics.data.gov.uk/id/local-authority/30UE,Service Management & Support,1009,Customer & Digital,Vehicles and Plant Maintenance,30045,Direct Transport Costs,5016,Nissan NV200 PL16UUD,31/10/2018,133390,"2,108.72",Revenue,Nissan Finance,76251
Chorley Borough Council,http://statistics.data.gov.uk/id/local-authority/30UE,Service Management & Support,1009,Customer & Digital,Vehicles and Plant Maintenance,30045,Direct Transport Costs,5016,Nissan NV200 PL16UUF,31/10/2018,133391,"2,108.72",Revenue,Nissan Finance,76251
Chorley Borough Council,http://statistics.data.gov.uk/id/local-authority/30UE,Service Management & Support,1009,Customer & Digital,Vehicles and Plant Maintenance,30045,Direct Transport Costs,5016,6 x    410/650mm 3.3mm Wire Channel Brush 4 Row - ProBrush� Disk (Product code: 835/66) @36.94 each,12/10/2018,132916,221.64,Revenue,Northern Municipal Spares Ltd,17752
Chorley Borough Council,http://statistics.data.gov.uk/id/local-authority/30UE,Service Management & Support,1009,Customer & Digital,Vehicles and Plant Maintenance,30045,Direct Transport Costs,5016,"2 x   Johnston VT650,651,800 W/S Quick Change Long Life One Piece (Product code: 295050-406) @ 90.75 each",12/10/2018,132916,181.50,Revenue,Northern Municipal Spares Ltd,17752
Chorley Borough Council,http://statistics.data.gov.uk/id/local-authority/30UE,Central Support Services,1009,Customer & Digital,Consultants` Fees,40077,Services,5027,MK/100947 Support & Maintenance,19/10/2018,133144,300.00,Revenue,Northgate Public Sector Limited,21391
Chorley Borough Council,http://statistics.data.gov.uk/id/local-authority/30UE,Unapportionable Central OHeads,1009,Customer & Digital,Professional Fees,14011,Direct Employee Expenses,5001,"Building Control Archive Scanning 2,000 Large Format Black and White 30,000 A3/4/5 Documents(Images) (Indexed as individual",17/10/2018,132704,360.00,Revenue,Northgate Public Services (UK) Limited,18285
Chorley Borough Council,http://statistics.data.gov.uk/id/local-authority/30UE,Unapportionable Central OHeads,1009,Policy & Governance,Exhibitions & Special Events,40158,Miscellaneous Expenses,5034,Toilet hire for Picnic in the Park,19/10/2018,133090,315.00,Revenue,Northwest Portables,74432
Chorley Borough Council,http://statistics.data.gov.uk/id/local-authority/30UE,Central Support Services,1009,Business Development & Growth,Electricity,20013,Energy Costs,5006,1/9/18 to 30/9/18,17/10/2018,133041,294.73,Revenue,Npower Commercial Gas,16814
Chorley Borough Council,http://statistics.data.gov.uk/id/local-authority/30UE,Unapportionable Central OHeads,1009,Business Development & Growth,Electricity,20013,Energy Costs,5006,1/9/18 to 30/9/18,17/10/2018,133045,"2,076.39",Revenue,Npower Commercial Gas,16814
Chorley Borough Council,http://statistics.data.gov.uk/id/local-authority/30UE,Unapportionable Central OHeads,1009,Business Development & Growth,Electricity,20013,Energy Costs,5006,1/9/18 to 30/9/18,17/10/2018,133046,844.28,Revenue,Npower Commercial Gas,16814
Chorley Borough Council,http://statistics.data.gov.uk/id/local-authority/30UE,Unapportionable Central OHeads,1009,Business Development & Growth,Electricity,20013,Energy Costs,5006,1/9/2018 to 30/9/18,17/10/2018,133047,"3,933.42",Revenue,Npower Commercial Gas,16814
Chorley Borough Council,http://statistics.data.gov.uk/id/local-authority/30UE,Democratic Represent and  Mgnt,1007,Business Development & Growth,Electricity,20013,Energy Costs,5006,02/07/18 - 01/10/18,31/10/2018,133286,291.70,Revenue,Npower Commercial Gas,16814
Chorley Borough Council,http://statistics.data.gov.uk/id/local-authority/30UE,Community Development,1097,Business Development & Growth,Electricity,20013,Energy Costs,5006,02/07/18 - 01/10/18,31/10/2018,133287,254.26,Revenue,Npower Commercial Gas,16814
Chorley Borough Council,http://statistics.data.gov.uk/id/local-authority/30UE,Democratic Represent and  Mgnt,1007,Business Development & Growth,Electricity,20013,Energy Costs,5006,02/07/18 - 01/10/18,31/10/2018,133290,254.71,Revenue,Npower Commercial Gas,16814
Chorley Borough Council,http://statistics.data.gov.uk/id/local-authority/30UE,Homelessness,1075,Business Development & Growth,Electricity,20013,Energy Costs,5006,02/07/18 - 30/09/18,31/10/2018,133292,"1,225.82",Revenue,Npower Commercial Gas,16814
Chorley Borough Council,http://statistics.data.gov.uk/id/local-authority/30UE,Business Support,1095,Business Development & Growth,Electricity,20013,Energy Costs,5006,01/07/18 - 30/09/18,31/10/2018,133293,"2,138.64",Revenue,Npower Commercial Gas,16814
Chorley Borough Council,http://statistics.data.gov.uk/id/local-authority/30UE,Parking Services,1066,Business Development & Growth,External Contractors,50008,Private Contractors,5042,"Provision of off street car park enforcement, cash collection, cash counting facilities and third party bulk cash collections April 18",05/10/2018,132687,"4,535.38",Revenue,NSL Limited,67253
Chorley Borough Council,http://statistics.data.gov.uk/id/local-authority/30UE,Parking Services,1066,Business Development & Growth,External Contractors,50008,Private Contractors,5042,"Provision of off street car park enforcement, cash collection, cash counting facilities and third party bulk cash  collections April 18",05/10/2018,132749,"4,303.99",Revenue,NSL Limited,67253
Chorley Borough Council,http://statistics.data.gov.uk/id/local-authority/30UE,Central Support Services,1009,Customer & Digital,Consultants` Fees,40077,Services,5027,Nviron consultancy,17/10/2018,132002,"1,860.00",Revenue,Nviron Limited,77141
Chorley Borough Council,http://statistics.data.gov.uk/id/local-authority/30UE,Unapportionable Central OHeads,1009,Customer & Digital,Exhibitions & Special Events,40158,Miscellaneous Expenses,5034,4000 cable ties (710mm x 9mm,12/10/2018,132919,430.00,Revenue,P D M Components,19204
Chorley Borough Council,http://statistics.data.gov.uk/id/local-authority/30UE,Unapportionable Central OHeads,1009,Policy & Governance,General Subscriptions,40146,Grants and Subscriptions,5031,Digital publication of the What`s Happening Magazine,31/10/2018,133160,350.00,Revenue,PageSuite Ltd,22036
Chorley Borough Council,http://statistics.data.gov.uk/id/local-authority/30UE,Central Support Services,1009,Early Intervention,Core Funding Grants,40133,Grants and Subscriptions,5031,small comm grant funding,10/10/2018,132874,500.00,Revenue,NAME REDACTED,77565
Chorley Borough Council,http://statistics.data.gov.uk/id/local-authority/30UE,Unapportionable Central OHeads,1009,Business Development & Growth,Planned Maintenance,20006,Repairs Maintenance & Alts,5005,Blanket order for PPM works from July 17,17/10/2018,132897,793.50,Revenue,Pennine Fire & Safety Limited,69643
Chorley Borough Council,http://statistics.data.gov.uk/id/local-authority/30UE,Unapportionable Central OHeads,1009,Business Development & Growth,Planned Maintenance,20006,Repairs Maintenance & Alts,5005,repairs and upgrades to fire protection equipment as per your quotation dated 17/9/18,31/10/2018,132974,637.85,Revenue,Pennine Fire & Safety Limited,69643
Chorley Borough Council,http://statistics.data.gov.uk/id/local-authority/30UE,Unapportionable Central OHeads,1009,Policy & Governance,Service Fees,40056,Services,5027,Occupational Health Fees for September 2018,17/10/2018,133077,"1,299.75",Revenue,People Asset Management Limited,76487
Chorley Borough Council,http://statistics.data.gov.uk/id/local-authority/30UE,Capital,Capital,Business Development & Growth,Other Capital Related Fees,3024,Capital Expenditure,Capital,Primrose Gardens July 18 Quantity Surveying Services,17/10/2018,131506,"1,896.00",Capital,Perfect Circle JV Ltd,76438
Chorley Borough Council,http://statistics.data.gov.uk/id/local-authority/30UE,Capital,Capital,Business Development & Growth,Other Capital Related Fees,3024,Capital Expenditure,Capital,Primrose Garden July 2018 Project Mgnt Services,17/10/2018,131507,"2,432.25",Capital,Perfect Circle JV Ltd,76438
Chorley Borough Council,http://statistics.data.gov.uk/id/local-authority/30UE,Capital,Capital,Business Development & Growth,Other Capital Related Fees,3024,Capital Expenditure,Capital,Primrose Gardens August 2018,17/10/2018,132301,"1,896.00",Capital,Perfect Circle JV Ltd,76438
Chorley Borough Council,http://statistics.data.gov.uk/id/local-authority/30UE,Capital,Capital,Business Development & Growth,Other Capital Related Fees,3024,Capital Expenditure,Capital,Primrose Gardens August 2018,17/10/2018,132302,"2,432.25",Capital,Perfect Circle JV Ltd,76438
Chorley Borough Council,http://statistics.data.gov.uk/id/local-authority/30UE,Capital,Capital,Business Development & Growth,Consultants Fees,3025,Capital Expenditure,Capital,To provide Project Management for Market Walk and associated schemes  (previous order no: PRD052595),17/10/2018,132831,"11,171.78",Capital,Perfect Circle JV Ltd,76438
Chorley Borough Council,http://statistics.data.gov.uk/id/local-authority/30UE,Capital,Capital,Business Development & Growth,Other Capital Related Fees,3024,Capital Expenditure,Capital,Primrose Gardens September 2018,19/10/2018,132937,"2,432.25",Capital,Perfect Circle JV Ltd,76438
Chorley Borough Council,http://statistics.data.gov.uk/id/local-authority/30UE,Capital,Capital,Business Development & Growth,Other Capital Related Fees,3024,Capital Expenditure,Capital,Primrose Gardens September 2018,19/10/2018,132938,"1,896.00",Capital,Perfect Circle JV Ltd,76438
Chorley Borough Council,http://statistics.data.gov.uk/id/local-authority/30UE,Capital,Capital,Business Development & Growth,Other Capital Related Fees,3024,Capital Expenditure,Capital,Clerk of Works services for Primrose Gardens,31/10/2018,132939,"1,624.84",Capital,Perfect Circle JV Ltd,76438
Chorley Borough Council,http://statistics.data.gov.uk/id/local-authority/30UE,Central Support Services,1009,Early Intervention,External Contractor,40198,Miscellaneous Expenses,5034,Pest Control services for 2018/19,03/10/2018,132593,340.00,Revenue,Peter L Johnson,16727
Chorley Borough Council,http://statistics.data.gov.uk/id/local-authority/30UE,Central Support Services,1009,Early Intervention,External Contractor,40198,Miscellaneous Expenses,5034,Pest Control services for 2018/19,03/10/2018,132752,340.00,Revenue,Peter L Johnson,16727
Chorley Borough Council,http://statistics.data.gov.uk/id/local-authority/30UE,Central Support Services,1009,Early Intervention,External Contractor,40198,Miscellaneous Expenses,5034,Pest Control services for 2018/19,12/10/2018,132940,340.00,Revenue,Peter L Johnson,16727
Chorley Borough Council,http://statistics.data.gov.uk/id/local-authority/30UE,Central Support Services,1009,Early Intervention,External Contractor,40198,Miscellaneous Expenses,5034,Pest Control services for 2018/19,19/10/2018,133126,340.00,Revenue,Peter L Johnson,16727
Chorley Borough Council,http://statistics.data.gov.uk/id/local-authority/30UE,Central Support Services,1009,Early Intervention,External Contractor,40198,Miscellaneous Expenses,5034,Pest Control services for 2018/19,24/10/2018,133321,340.00,Revenue,Peter L Johnson,16727
Chorley Borough Council,http://statistics.data.gov.uk/id/local-authority/30UE,Central Support Services,1009,Early Intervention,Miscellaneous Expenses,40200,Miscellaneous Expenses,5034,"Manufacture & install Alleygates:  2 x Gates at Park Road, Adlington 2018 1 x Gate at Water St, Chorley 2018",26/10/2018,133331,"3,832.70",Revenue,PHG,21730
Chorley Borough Council,http://statistics.data.gov.uk/id/local-authority/30UE,Precepts and Collection Fund,Precepts,Policy & Governance,LPA Precept,2010,Precepts & Collection Fund,Precept,PCC council tax precept,03/10/2018,132401,"654,586.00",Revenue,Police & Crime Commissioner,17438
Chorley Borough Council,http://statistics.data.gov.uk/id/local-authority/30UE,Unapportionable Central OHeads,1009,Policy & Governance,Exhibitions & Special Events,40158,Miscellaneous Expenses,5034,"35 smaller stickers for vans / tippers at Bengal Street, plus 6 larger stickers for the Market Walk trailers based at MW Printed ",24/10/2018,133124,495.00,Revenue,Poppy Signs Ltd,21898
Chorley Borough Council,http://statistics.data.gov.uk/id/local-authority/30UE,Business Support,1095,Business Development & Growth,Miscellaneous Expenses,40200,Miscellaneous Expenses,5034,Installation of Foul Manhole - Strawberry Fields,19/10/2018,133096,"5,563.00",Revenue,Primrose Holdings 1995 Ltd,17786
Chorley Borough Council,http://statistics.data.gov.uk/id/local-authority/30UE,Elections,1012,Policy & Governance,Printing,40043,"Printing, Stationery & General",5026,2nd run - final reminders HEF`s 2018,17/10/2018,133081,"1,432.23",Revenue,Print Image Network,21171
Chorley Borough Council,http://statistics.data.gov.uk/id/local-authority/30UE,Elections,1012,Policy & Governance,Printing,40043,"Printing, Stationery & General",5026,2nd run  ITR`s - canvass 2018,19/10/2018,133094,601.64,Revenue,Print Image Network,21171
Chorley Borough Council,http://statistics.data.gov.uk/id/local-authority/30UE,Elections,1012,Policy & Governance,Stationery,40050,"Printing, Stationery & General",5026,8000 1st class business reply envelopes,19/10/2018,133115,255.60,Revenue,Print Image Network,21171
Chorley Borough Council,http://statistics.data.gov.uk/id/local-authority/30UE,Other Short Term Creditors,,Policy & Governance,General Balances,100,Balance Sheet,Balance,L004/17332,24/10/2018,133253,"2,373.50",Revenue,PRUDENTIAL,18178
Chorley Borough Council,http://statistics.data.gov.uk/id/local-authority/30UE,Control Accounts,Control,Customer & Digital,Manual Control Account,1,Balance Sheet,Balance,,24/10/2018,133051,"100,000.00",Revenue,Redrow Homes Limited,77627
Chorley Borough Council,http://statistics.data.gov.uk/id/local-authority/30UE,Control Accounts,Control,Policy & Governance,General Balances,100,Balance Sheet,Balance,childcare vouchers,03/10/2018,132151,"4,142.75",Revenue,Reward Gateway (UK) Ltd,66814
Chorley Borough Council,http://statistics.data.gov.uk/id/local-authority/30UE,Non Domestic Rates Redistribut,,Policy & Governance,Tariff to Business Rates Pool,49002,Expenditure not in NCOS,,Lancs Bus Rate Pool,03/10/2018,132553,"500,449.00",Revenue,Ribble Valley Borough Council DIRECT DEBIT ONLY,21100
Chorley Borough Council,http://statistics.data.gov.uk/id/local-authority/30UE,Unapportionable Central OHeads,1009,Policy & Governance,Exhibitions & Special Events,40158,Miscellaneous Expenses,5034,Traffic Management for The Chorley Pals parade 22 September,05/10/2018,132839,938.00,Revenue,Road Safety Services Ltd,69457
Chorley Borough Council,http://statistics.data.gov.uk/id/local-authority/30UE,Elections,1012,Policy & Governance,Postages,40082,Communication and Computing,5028,business reply for RRHA-KZCB-CAXA October 2018 - March 2019,12/10/2018,132981,802.85,Revenue,Royal Mail Group Plc,17522
Chorley Borough Council,http://statistics.data.gov.uk/id/local-authority/30UE,Unapportionable Central OHeads,1009,Policy & Governance,Exhibitions & Special Events,40158,Miscellaneous Expenses,5034,Collection and Storage of Staging,05/10/2018,132822,999.00,Revenue,RPM Events,70613
Chorley Borough Council,http://statistics.data.gov.uk/id/local-authority/30UE,Homelessness,1075,Early Intervention,External Contractor,40198,Miscellaneous Expenses,5034,Concierge services until 31/03/2019,05/10/2018,132809,"5,320.58",Revenue,Sector Security Services,19269
Chorley Borough Council,http://statistics.data.gov.uk/id/local-authority/30UE,Business Support,1095,Business Development & Growth,Security Service,40062,Services,5027,To provide security services at Market Walk Shopping Centre from 1st April 2018 to 31st March 2019 @6683 per month ,19/10/2018,133095,"6,683.00",Revenue,Securitas Security Services (UK) Ltd,70693
Chorley Borough Council,http://statistics.data.gov.uk/id/local-authority/30UE,Business Support,1095,Business Development & Growth,Security Service,40062,Services,5027,To provide security services at Market Walk Shopping Centre from 1st April 2018 to 31st March 2019 @6683 per month ,24/10/2018,133108,"6,683.00",Revenue,Securitas Security Services (UK) Ltd,70693
Chorley Borough Council,http://statistics.data.gov.uk/id/local-authority/30UE,Central Support Services,1009,Early Intervention,Core Funding Grants,40133,Grants and Subscriptions,5031,core grant funding,10/10/2018,132871,300.00,Revenue,Sightseekers,77560
Chorley Borough Council,http://statistics.data.gov.uk/id/local-authority/30UE,Central Support Services,1009,Customer & Digital,Consultants` Fees,40077,Services,5027,"1 x ICT Consultancy Work Aug-Sep 144:37:00 hours @ 24.00 = 3,470.00",31/10/2018,133365,"3,470.00",Revenue,NAME REDACTED,57624
Chorley Borough Council,http://statistics.data.gov.uk/id/local-authority/30UE,Service Management & Support,1009,Customer & Digital,Supplies-Grounds Maintenance,40025,"Equipment, Furniture & Materia",5023,100 x Warrior 0111WP PU gripper glove Grey seamless knitted nylon glove with PU coated palm EN388 4121 Size  Large ,31/10/2018,133338,36.00,Revenue,Smart Image Workwear,21064
Chorley Borough Council,http://statistics.data.gov.uk/id/local-authority/30UE,Service Management & Support,1009,Customer & Digital,Supplies-Grounds Maintenance,40025,"Equipment, Furniture & Materia",5023,2 x size 9  Hercules 620 S3 SRC Safety Boot (Ankle)  (F962) @ 21.50each,31/10/2018,133338,43.00,Revenue,Smart Image Workwear,21064
Chorley Borough Council,http://statistics.data.gov.uk/id/local-authority/30UE,Service Management & Support,1009,Customer & Digital,Supplies-Grounds Maintenance,40025,"Equipment, Furniture & Materia",5023,2 x size 10  Hercules 620 S3 SRC Safety Boot (Ankle)  (F962) @ 21.50each,31/10/2018,133338,43.00,Revenue,Smart Image Workwear,21064
Chorley Borough Council,http://statistics.data.gov.uk/id/local-authority/30UE,Service Management & Support,1009,Customer & Digital,Supplies-Grounds Maintenance,40025,"Equipment, Furniture & Materia",5023,"High-Vis, Yellow, 100% waterproof, windproof and breathable outer trousers (HVTYST33) @ 12.15each  sizes and quantities",31/10/2018,133338,97.20,Revenue,Smart Image Workwear,21064
Chorley Borough Council,http://statistics.data.gov.uk/id/local-authority/30UE,Service Management & Support,1009,Customer & Digital,Supplies-Grounds Maintenance,40025,"Equipment, Furniture & Materia",5023,ORN 2900-15 Vulture Ballistic Trouser (WTORN2900-15) @ 19.95each  sizes and quantities: Waist 40 - regular leg x 2 Waist 44,31/10/2018,133338,79.80,Revenue,Smart Image Workwear,21064
Chorley Borough Council,http://statistics.data.gov.uk/id/local-authority/30UE,Central Support Services,1009,Early Intervention,Miscellaneous Expenses,40200,Miscellaneous Expenses,5034,Time Credits network management April 2018-September 2018,19/10/2018,133076,"20,000.00",Revenue,Spice Innovations Ltd,61318
Chorley Borough Council,http://statistics.data.gov.uk/id/local-authority/30UE,Democratic Represent and  Mgnt,1007,Policy & Governance,Grants To Other Organisations,40127,Grants and Subscriptions,5031,GRANT,31/10/2018,133314,250.00,Revenue,Springfield Park Leisure Centre,70493
Chorley Borough Council,http://statistics.data.gov.uk/id/local-authority/30UE,Central Support Services,1009,Early Intervention,Core Funding Grants,40133,Grants and Subscriptions,5031,core funding grt,10/10/2018,132870,375.00,Revenue,St Peter`s Church Lads and Church Girls Birgade,77567
Chorley Borough Council,http://statistics.data.gov.uk/id/local-authority/30UE,Corporate Management,1008,Policy & Governance,Other Contributions,40145,Grants and Subscriptions,5031,For the provision of the 7C bus service to 1 September 2018,03/10/2018,132731,"7,599.58",Revenue,Stagecoach Services Limited,18598
Chorley Borough Council,http://statistics.data.gov.uk/id/local-authority/30UE,Corporate Management,1008,Policy & Governance,Other Contributions,40145,Grants and Subscriptions,5031,For the provision of the 7C bus service to 1 September 2018,03/10/2018,132732,"1,549.50",Revenue,Stagecoach Services Limited,18598
Chorley Borough Council,http://statistics.data.gov.uk/id/local-authority/30UE,Corporate Management,1008,Policy & Governance,Other Contributions,40145,Grants and Subscriptions,5031,For the provision of the 7C bus service to 1 September 2018,03/10/2018,132733,"7,607.88",Revenue,Stagecoach Services Limited,18598
Chorley Borough Council,http://statistics.data.gov.uk/id/local-authority/30UE,Capital,Capital,Business Development & Growth,Other Capital Related Fees,3024,Capital Expenditure,Capital,Provision of Public Realm & Highway Design Engineering services as per contract for a period of 30 months from w/c 5th June 17,05/10/2018,132824,"2,475.00",Capital,Street Civil Engineering Limited,76750
Chorley Borough Council,http://statistics.data.gov.uk/id/local-authority/30UE,Unapportionable Central OHeads,1009,Business Development & Growth,General Repairs - Reactive,20004,Repairs Maintenance & Alts,5005,Blanket order for reactive repairs,05/10/2018,132470,403.49,Revenue,Stringfellow Bldg Cntrctrs Ltd,17893
Chorley Borough Council,http://statistics.data.gov.uk/id/local-authority/30UE,Unapportionable Central OHeads,1009,Business Development & Growth,General Repairs - Reactive,20004,Repairs Maintenance & Alts,5005,Demolition of Greenside garages & disposal of all associated waste materials Supply fit fencing to boundary of adjacent property,17/10/2018,132641,"5,250.00",Revenue,Stringfellow Bldg Cntrctrs Ltd,17893
Chorley Borough Council,http://statistics.data.gov.uk/id/local-authority/30UE,Capital,Capital,Early Intervention,Grants,3002,Capital Expenditure,Capital,ADDRESS REDACTED,10/10/2018,132868,"1,230.00",Capital,Stringfellow Bldg Cntrctrs Ltd,17893
Chorley Borough Council,http://statistics.data.gov.uk/id/local-authority/30UE,Capital,Capital,Early Intervention,Grants,3002,Capital Expenditure,Capital,ADDRESS REDACTED,10/10/2018,132869,"4,583.50",Capital,Stringfellow Bldg Cntrctrs Ltd,17893
Chorley Borough Council,http://statistics.data.gov.uk/id/local-authority/30UE,Unapportionable Central OHeads,1009,Business Development & Growth,General Repairs - Reactive,20004,Repairs Maintenance & Alts,5005,Blanket order for reactive repairs,31/10/2018,133022,422.67,Revenue,Stringfellow Bldg Cntrctrs Ltd,17893
Chorley Borough Council,http://statistics.data.gov.uk/id/local-authority/30UE,Capital,Capital,Early Intervention,Grants,3002,Capital Expenditure,Capital,DFG ADDRESS REDACTED,19/10/2018,133146,"9,280.00",Capital,Stringfellow Bldg Cntrctrs Ltd,17893
Chorley Borough Council,http://statistics.data.gov.uk/id/local-authority/30UE,Capital,Capital,Early Intervention,Grants,3002,Capital Expenditure,Capital,DFG ADDRESS REDACTED,24/10/2018,133147,"10,420.00",Capital,Stringfellow Bldg Cntrctrs Ltd,17893
Chorley Borough Council,http://statistics.data.gov.uk/id/local-authority/30UE,Capital,Capital,Early Intervention,Grants,3002,Capital Expenditure,Capital,ADDRESS REDACTED,19/10/2018,133148,"3,654.50",Capital,Stringfellow Bldg Cntrctrs Ltd,17893
Chorley Borough Council,http://statistics.data.gov.uk/id/local-authority/30UE,Unapportionable Central OHeads,1009,Business Development & Growth,Asset Maintenance Fund,20012,Repairs Maintenance & Alts,5005,Decorate walls and woodwork in HR office,26/10/2018,133184,"1,000.00",Revenue,Stringfellow Bldg Cntrctrs Ltd,17893
Chorley Borough Council,http://statistics.data.gov.uk/id/local-authority/30UE,Unapportionable Central OHeads,1009,Business Development & Growth,General Repairs - Reactive,20004,Repairs Maintenance & Alts,5005,Blanket order for reactive repairs,31/10/2018,133232,604.80,Revenue,Stringfellow Bldg Cntrctrs Ltd,17893
Chorley Borough Council,http://statistics.data.gov.uk/id/local-authority/30UE,Unapportionable Central OHeads,1009,Business Development & Growth,General Repairs - Reactive,20004,Repairs Maintenance & Alts,5005,Blanket order for reactive repairs,31/10/2018,133236,437.51,Revenue,Stringfellow Bldg Cntrctrs Ltd,17893
Chorley Borough Council,http://statistics.data.gov.uk/id/local-authority/30UE,Democratic Represent and  Mgnt,1007,Policy & Governance,Mayoral Hospitality,40123,Expenses,5030,176 x hotpot @ 3.49 for the Mayor`s Charity Lancashire Night on 15th September 2018,17/10/2018,133064,614.00,Revenue,Style Catering,66901
Chorley Borough Council,http://statistics.data.gov.uk/id/local-authority/30UE,Service Management & Support,1009,Customer & Digital,Refuse Collection,20037,Cleaning and Domestic Supplies,5012,Waste Disposal,17/10/2018,132300,"2,398.78",Revenue,SUEZ R&R UK LTD,17615
Chorley Borough Council,http://statistics.data.gov.uk/id/local-authority/30UE,Democratic Represent and  Mgnt,1007,Business Development & Growth,External Contractor,40198,Miscellaneous Expenses,5034,"14 yard skip delivery for Worthy St Allotments.  On Monday 17 September to Buchannan Street, Chorley, PR6 0PG.  ",17/10/2018,132928,370.84,Revenue,SUEZ R&R UK LTD,17615
Chorley Borough Council,http://statistics.data.gov.uk/id/local-authority/30UE,Business Support,1095,Business Development & Growth,Refuse Collection,20037,Cleaning and Domestic Supplies,5012,Market Walk Shopping Ctr Clifford St,17/10/2018,132928,87.00,Revenue,SUEZ R&R UK LTD,17615
Chorley Borough Council,http://statistics.data.gov.uk/id/local-authority/30UE,Business Support,1095,Business Development & Growth,Refuse Collection,20037,Cleaning and Domestic Supplies,5012,"Market Walk Shopping Ctr, New Market St",17/10/2018,132928,25.00,Revenue,SUEZ R&R UK LTD,17615
Chorley Borough Council,http://statistics.data.gov.uk/id/local-authority/30UE,Democratic Represent and  Mgnt,1007,Business Development & Growth,Refuse Collection,20037,Cleaning and Domestic Supplies,5012,Tatton CC,17/10/2018,132928,12.49,Revenue,SUEZ R&R UK LTD,17615
Chorley Borough Council,http://statistics.data.gov.uk/id/local-authority/30UE,Unapportionable Central OHeads,1009,Business Development & Growth,Refuse Collection,20037,Cleaning and Domestic Supplies,5012,Town Hall,17/10/2018,132928,12.00,Revenue,SUEZ R&R UK LTD,17615
Chorley Borough Council,http://statistics.data.gov.uk/id/local-authority/30UE,Service Management & Support,1009,Customer & Digital,Refuse Collection,20037,Cleaning and Domestic Supplies,5012,Bengal Str,17/10/2018,132954,"2,142.54",Revenue,SUEZ R&R UK LTD,17615
Chorley Borough Council,http://statistics.data.gov.uk/id/local-authority/30UE,Democratic Represent and  Mgnt,1007,Customer & Digital,Refuse Collection,20037,Cleaning and Domestic Supplies,5012,astley hall,12/10/2018,132955,41.72,Revenue,SUEZ R&R UK LTD,17615
Chorley Borough Council,http://statistics.data.gov.uk/id/local-authority/30UE,Democratic Represent and  Mgnt,1007,Customer & Digital,Refuse Collection,20037,Cleaning and Domestic Supplies,5012,astley hall comm c,12/10/2018,132955,28.75,Revenue,SUEZ R&R UK LTD,17615
Chorley Borough Council,http://statistics.data.gov.uk/id/local-authority/30UE,Recreation & Sport,1037,Customer & Digital,Miscellaneous Expenses,40200,Miscellaneous Expenses,5034,buttermere green,12/10/2018,132955,28.75,Revenue,SUEZ R&R UK LTD,17615
Chorley Borough Council,http://statistics.data.gov.uk/id/local-authority/30UE,Unapportionable Central OHeads,1009,Customer & Digital,Refuse Collection,20037,Cleaning and Domestic Supplies,5012,civic offices,12/10/2018,132955,250.30,Revenue,SUEZ R&R UK LTD,17615
Chorley Borough Council,http://statistics.data.gov.uk/id/local-authority/30UE,Democratic Represent and  Mgnt,1007,Customer & Digital,Refuse Collection,20037,Cleaning and Domestic Supplies,5012,clayton brook,12/10/2018,132955,22.19,Revenue,SUEZ R&R UK LTD,17615
Chorley Borough Council,http://statistics.data.gov.uk/id/local-authority/30UE,Democratic Represent and  Mgnt,1007,Customer & Digital,Refuse Collection,20037,Cleaning and Domestic Supplies,5012,eaves green,12/10/2018,132955,28.75,Revenue,SUEZ R&R UK LTD,17615
Chorley Borough Council,http://statistics.data.gov.uk/id/local-authority/30UE,Recreation & Sport,1037,Customer & Digital,Miscellaneous Expenses,40200,Miscellaneous Expenses,5034,lancaster way,12/10/2018,132955,28.75,Revenue,SUEZ R&R UK LTD,17615
Chorley Borough Council,http://statistics.data.gov.uk/id/local-authority/30UE,Community Development,1097,Customer & Digital,Refuse Collection,20037,Cleaning and Domestic Supplies,5012,mp`s const office,12/10/2018,132955,41.72,Revenue,SUEZ R&R UK LTD,17615
Chorley Borough Council,http://statistics.data.gov.uk/id/local-authority/30UE,Unapportionable Central OHeads,1009,Customer & Digital,Refuse Collection,20037,Cleaning and Domestic Supplies,5012,town hall,12/10/2018,132955,250.30,Revenue,SUEZ R&R UK LTD,17615
Chorley Borough Council,http://statistics.data.gov.uk/id/local-authority/30UE,Unapportionable Central OHeads,1009,Customer & Digital,Refuse Collection,20037,Cleaning and Domestic Supplies,5012,Trade waste collection and disposal from Chorley Council Buildings (Aug 2018 - March 2019) CIVIC OFFICES Union St ,17/10/2018,132956,250.30,Revenue,SUEZ R&R UK LTD,17615
Chorley Borough Council,http://statistics.data.gov.uk/id/local-authority/30UE,Unapportionable Central OHeads,1009,Customer & Digital,Refuse Collection,20037,Cleaning and Domestic Supplies,5012,Trade waste collection and disposal from Chorley Council Buildings (Aug 2018 - March 2019) TOWN HALL. market street ,17/10/2018,132956,250.30,Revenue,SUEZ R&R UK LTD,17615
Chorley Borough Council,http://statistics.data.gov.uk/id/local-authority/30UE,Community Development,1097,Customer & Digital,Refuse Collection,20037,Cleaning and Domestic Supplies,5012,Trade waste collection and disposal from Chorley Council Buildings (Aug 2018 - March 2019) MP`s OFFICE (35-39) Market St ,17/10/2018,132956,41.72,Revenue,SUEZ R&R UK LTD,17615
Chorley Borough Council,http://statistics.data.gov.uk/id/local-authority/30UE,Democratic Represent and  Mgnt,1007,Customer & Digital,Refuse Collection,20037,Cleaning and Domestic Supplies,5012,Provision of Trade waste collection for TATTON CC (Aug 2018- March 2019) (1 x 1100 litre bin per fortnight),17/10/2018,132956,8.10,Revenue,SUEZ R&R UK LTD,17615
Chorley Borough Council,http://statistics.data.gov.uk/id/local-authority/30UE,Democratic Represent and  Mgnt,1007,Customer & Digital,Refuse Collection,20037,Cleaning and Domestic Supplies,5012,"Provision of Trade waste collection for EAVES GREEN CC (Aug 2018- March 2019) (1 x 360 litre bin per week)",17/10/2018,132956,28.75,Revenue,SUEZ R&R UK LTD,17615
Chorley Borough Council,http://statistics.data.gov.uk/id/local-authority/30UE,Democratic Represent and  Mgnt,1007,Customer & Digital,Refuse Collection,20037,Cleaning and Domestic Supplies,5012,Provision of Trade waste collection for  ASTLEY VILLAGE CC (Aug 2018- March 2019) (1 x 360 litre bin per week),17/10/2018,132956,28.75,Revenue,SUEZ R&R UK LTD,17615
Chorley Borough Council,http://statistics.data.gov.uk/id/local-authority/30UE,Recreation & Sport,1037,Customer & Digital,Miscellaneous Expenses,40200,Miscellaneous Expenses,5034,Provision of Trade waste collection for  LANCASTER WAY CC (Aug 2018- March 2019) (1 x 360 litre bin per week),17/10/2018,132956,28.75,Revenue,SUEZ R&R UK LTD,17615
Chorley Borough Council,http://statistics.data.gov.uk/id/local-authority/30UE,Recreation & Sport,1037,Customer & Digital,Miscellaneous Expenses,40200,Miscellaneous Expenses,5034,Provision of Trade waste collection for  BUTTERMERE GREEN CC (Aug 2018- March 2019) (1 x 360 litre bin per week),17/10/2018,132956,28.75,Revenue,SUEZ R&R UK LTD,17615
Chorley Borough Council,http://statistics.data.gov.uk/id/local-authority/30UE,Democratic Represent and  Mgnt,1007,Customer & Digital,Refuse Collection,20037,Cleaning and Domestic Supplies,5012,Provision of Trade waste collection for  CLAYTON BROOK VILLAGE HALL (Aug 2018- March 2019) (6 x refuse sack per week),17/10/2018,132956,22.19,Revenue,SUEZ R&R UK LTD,17615
Chorley Borough Council,http://statistics.data.gov.uk/id/local-authority/30UE,Democratic Represent and  Mgnt,1007,Customer & Digital,Refuse Collection,20037,Cleaning and Domestic Supplies,5012,Provision of Trade waste collection for  ASTLEY HALL (Aug 2018- March 2019) (1 x 1100 litre bin per week),17/10/2018,132956,41.72,Revenue,SUEZ R&R UK LTD,17615
Chorley Borough Council,http://statistics.data.gov.uk/id/local-authority/30UE,Open Spaces,1038,Business Development & Growth,Professional Fees,40063,Services,5027,Topo. survey at Wigan Lane Playing Fields in accordance with Quotation  18H285-286,17/10/2018,133066,"1,100.00",Revenue,Survey Operations Ltd,55910
Chorley Borough Council,http://statistics.data.gov.uk/id/local-authority/30UE,Open Spaces,1038,Business Development & Growth,Professional Fees,40063,Services,5027,Topo survey at Kem Mill Lane in accordance with Quotation ref: 18H280-281,17/10/2018,133073,550.00,Revenue,Survey Operations Ltd,55910
Chorley Borough Council,http://statistics.data.gov.uk/id/local-authority/30UE,Capital,Capital,Business Development & Growth,Surveyors Fees,3021,Capital Expenditure,Capital,Topographical survey to be undertaken to aid the installation of a new footbridge into Yarrow Meadows - river level & bank heights,26/10/2018,133200,525.00,Capital,Survey Operations Ltd,55910
Chorley Borough Council,http://statistics.data.gov.uk/id/local-authority/30UE,Homelessness,1075,Early Intervention,Tools & Equipment - Purchase,40003,"Equipment, Furniture & Materia",5023,10.5 TOG DUVET,24/10/2018,132949,109.60,Revenue,System Hygiene Ltd,16572
Chorley Borough Council,http://statistics.data.gov.uk/id/local-authority/30UE,Homelessness,1075,Early Intervention,Tools & Equipment - Purchase,40003,"Equipment, Furniture & Materia",5023,Pillows,24/10/2018,132949,27.80,Revenue,System Hygiene Ltd,16572
Chorley Borough Council,http://statistics.data.gov.uk/id/local-authority/30UE,Homelessness,1075,Early Intervention,Tools & Equipment - Purchase,40003,"Equipment, Furniture & Materia",5023,3 piece pan set,24/10/2018,132949,74.80,Revenue,System Hygiene Ltd,16572
Chorley Borough Council,http://statistics.data.gov.uk/id/local-authority/30UE,Homelessness,1075,Early Intervention,Tools & Equipment - Purchase,40003,"Equipment, Furniture & Materia",5023,Frying pan (28cm),24/10/2018,132949,35.90,Revenue,System Hygiene Ltd,16572
Chorley Borough Council,http://statistics.data.gov.uk/id/local-authority/30UE,Homelessness,1075,Early Intervention,Tools & Equipment - Purchase,40003,"Equipment, Furniture & Materia",5023,CERAMIC MUG,24/10/2018,132949,6.00,Revenue,System Hygiene Ltd,16572
Chorley Borough Council,http://statistics.data.gov.uk/id/local-authority/30UE,Homelessness,1075,Early Intervention,Tools & Equipment - Purchase,40003,"Equipment, Furniture & Materia",5023,Egg cups(box),24/10/2018,132949,8.00,Revenue,System Hygiene Ltd,16572
Chorley Borough Council,http://statistics.data.gov.uk/id/local-authority/30UE,Homelessness,1075,Early Intervention,Tools & Equipment - Purchase,40003,"Equipment, Furniture & Materia",5023,Shower ma t( non slip),24/10/2018,132949,20.40,Revenue,System Hygiene Ltd,16572
Chorley Borough Council,http://statistics.data.gov.uk/id/local-authority/30UE,Democratic Represent and  Mgnt,1007,Policy & Governance,Exhibitions & Special Events,40158,Miscellaneous Expenses,5034,AWG services provided for Apple Day 2018 at Astley Hall.,24/10/2018,133098,500.00,Revenue,The Astley Walled Gardeners,70095
Chorley Borough Council,http://statistics.data.gov.uk/id/local-authority/30UE,Central Support Services,1009,Business Development & Growth,Consultants` Fees,40077,Services,5027,Ecological survey works at Alker Lane,03/10/2018,132576,"1,180.00",Revenue,The Environment Partnership (TEP) Ltd,77359
Chorley Borough Council,http://statistics.data.gov.uk/id/local-authority/30UE,Unapportionable Central OHeads,1009,Business Development & Growth,General Repairs - Reactive,20004,Repairs Maintenance & Alts,5005,Emergency call out and follow up repairs to workshop shutter at Bengal St following break in,31/10/2018,133141,"1,056.00",Revenue,The Guardian Shutter Co LTD,21769
Chorley Borough Council,http://statistics.data.gov.uk/id/local-authority/30UE,Business Support,1095,Business Development & Growth,Grants To Other Organisations,40127,Grants and Subscriptions,5031,grant,03/10/2018,132743,250.00,Revenue,The Lancashire Wrestling Federation,77429
Chorley Borough Council,http://statistics.data.gov.uk/id/local-authority/30UE,Unapportionable Central OHeads,1009,Policy & Governance,Professional Fees,14011,Direct Employee Expenses,5001,admission & PC Fee,10/10/2018,132905,411.00,Revenue,The Law Society,57091
Chorley Borough Council,http://statistics.data.gov.uk/id/local-authority/30UE,Central Support Services,1009,Customer & Digital,Computer - Support Services,40111,Communication and Computing,5028,0.5 days consultancy for response to Adept regarding IP addressing,03/10/2018,132668,300.00,Revenue,The Networking People (NorthWest) Ltd T/a TNP Ltd,73446
Chorley Borough Council,http://statistics.data.gov.uk/id/local-authority/30UE,Central Support Services,1009,Customer & Digital,Computer - Support Services,40111,Communication and Computing,5028,Advice on technical elements of LFFN,17/10/2018,133050,600.00,Revenue,The Networking People (NorthWest) Ltd T/a TNP Ltd,73446
Chorley Borough Council,http://statistics.data.gov.uk/id/local-authority/30UE,Central Support Services,1009,Customer & Digital,Miscellaneous Expenses,40200,Miscellaneous Expenses,5034,Cloud connect install: per site 1500.00 Cloud connect annual: per site per 1000 concurrent users 2500.00 TNPSMS -SMS ,31/10/2018,133401,"5,650.00",Revenue,The Networking People (NorthWest) Ltd T/a TNP Ltd,73446
Chorley Borough Council,http://statistics.data.gov.uk/id/local-authority/30UE,Business Support,1095,Business Development & Growth,Publicity - Advertising,40157,Miscellaneous Expenses,5034,"As per quote reference E#11044  100 x A4 6pp brochures, creased and stapled centre, cover singlesided.Deliver pre 10am Tues",03/10/2018,132684,273.00,Revenue,The Print Quarter,17987
Chorley Borough Council,http://statistics.data.gov.uk/id/local-authority/30UE,Corporate Management,1008,Customer & Digital,Printing,40043,"Printing, Stationery & General",5026,"Assisted Collection circular sticker, 10cm in diameter, printed onto gloss, synthetic vinyl, with permanent adhesive,printed CMYK",31/10/2018,133241,166.28,Revenue,The Print Quarter,17987
Chorley Borough Council,http://statistics.data.gov.uk/id/local-authority/30UE,Corporate Management,1008,Customer & Digital,Printing,40043,"Printing, Stationery & General",5026,"No Access sticker, 105x148.5mm, printed onto gloss, synthetic vinyl, with permanent adhesive, printed CMYK, supplied on rolls",31/10/2018,133241,213.41,Revenue,The Print Quarter,17987
Chorley Borough Council,http://statistics.data.gov.uk/id/local-authority/30UE,Corporate Management,1008,Customer & Digital,Printing,40043,"Printing, Stationery & General",5026,"Residual sticker, 228.6x660.4mm, printed onto gloss, synthetic vinyl, permanent adhesive, printed CMYK, supplied on rolls x200",31/10/2018,133241,426.00,Revenue,The Print Quarter,17987
Chorley Borough Council,http://statistics.data.gov.uk/id/local-authority/30UE,Central Support Services,1009,Early Intervention,General Subscriptions,40146,Grants and Subscriptions,5031,Renewal of subscription to online version of Encyclopaedia of Environmental Health Law and Practice (Start date 01/09/18),10/10/2018,132929,"1,647.80",Revenue,Thomson Reuters RE;Sweet & Maxwell Limited,17932
Chorley Borough Council,http://statistics.data.gov.uk/id/local-authority/30UE,Unapportionable Central OHeads,1009,Policy & Governance,Chorley B.C. Souvenirs,40028,"Equipment, Furniture & Materia",5023,"250 x clear pencils cases with pencil, eraser, ruler and pen all branded with Chorley crest.",24/10/2018,132735,583.00,Revenue,Total Merchandise Ltd,20898
Chorley Borough Council,http://statistics.data.gov.uk/id/local-authority/30UE,Economic Development,1096,Business Development & Growth,Christmas Lights,40179,Miscellaneous Expenses,5034,"Mini Christmas Trees with Smart Cell Lights x 170 = 11,900 Multi Tree Discount 297.50 Early Payment Discount 290",26/10/2018,133341,"11,312.50",Revenue,Town Centre Trees,57436
Chorley Borough Council,http://statistics.data.gov.uk/id/local-authority/30UE,Service Management & Support,1009,Policy & Governance,Vehicles and Plant Operating Lease,30029,Contrct Hire & Operating Lease,5018,,12/10/2018,132864,"2,736.78",Revenue,Triple Point Lease Partners,71646
Chorley Borough Council,http://statistics.data.gov.uk/id/local-authority/30UE,Service Management & Support,1009,Policy & Governance,Vehicles and Plant Operating Lease,30029,Contrct Hire & Operating Lease,5018,,12/10/2018,132864,"2,838.95",Revenue,Triple Point Lease Partners,71646
Chorley Borough Council,http://statistics.data.gov.uk/id/local-authority/30UE,Service Management & Support,1009,Policy & Governance,Vehicles and Plant Operating Lease,30029,Contrct Hire & Operating Lease,5018,,12/10/2018,132864,"2,642.93",Revenue,Triple Point Lease Partners,71646
Chorley Borough Council,http://statistics.data.gov.uk/id/local-authority/30UE,Service Management & Support,1009,Policy & Governance,Vehicles and Plant Operating Lease,30029,Contrct Hire & Operating Lease,5018,,12/10/2018,132865,"4,685.97",Revenue,Triple Point Lease Partners,71646
Chorley Borough Council,http://statistics.data.gov.uk/id/local-authority/30UE,Development Control,1091,Customer & Digital,Legal Fees,40171,Miscellaneous Expenses,5034,awarded costs ref16/01021/out appeal ref;AOO/D2320/W/18/3197535,26/10/2018,133323,"6,420.00",Revenue,TS Hibbert & Sons,77643
Chorley Borough Council,http://statistics.data.gov.uk/id/local-authority/30UE,Unapportionable Central OHeads,1009,Business Development & Growth,Planned Maintenance,20006,Repairs Maintenance & Alts,5005,6 month service for gas suppression system at union st,17/10/2018,132396,319.50,Revenue,Tyco Fire & Integrated Solutions,19663
Chorley Borough Council,http://statistics.data.gov.uk/id/local-authority/30UE,Service Management & Support,1009,Customer & Digital,Petrol,30005,Direct Transport Costs,5016,August,03/10/2018,132095,451.95,Revenue,Uk Fuels Ltd,57996
Chorley Borough Council,http://statistics.data.gov.uk/id/local-authority/30UE,Unapportionable Central OHeads,1009,Policy & Governance,Miscellaneous Expenses,40200,Miscellaneous Expenses,5034,,03/10/2018,132734,"1,453.60",Revenue,UK Healthcare (BDHSC),17241
Chorley Borough Council,http://statistics.data.gov.uk/id/local-authority/30UE,Unapportionable Central OHeads,1009,Policy & Governance,Miscellaneous Expenses,40200,Miscellaneous Expenses,5034,,12/10/2018,132914,"1,416.80",Revenue,UK Healthcare (BDHSC),17241
Chorley Borough Council,http://statistics.data.gov.uk/id/local-authority/30UE,Unapportionable Central OHeads,1009,Policy & Governance,Miscellaneous Expenses,40200,Miscellaneous Expenses,5034,,31/10/2018,133385,"1,444.40",Revenue,UK Healthcare (BDHSC),17241
Chorley Borough Council,http://statistics.data.gov.uk/id/local-authority/30UE,Unapportionable Central OHeads,1009,Customer & Digital,Service Fees,40056,Services,5027,2018-19 daily hybrid mail & annual billing,05/10/2018,132677,731.82,Revenue,UKMAIL Ltd (Mail),57758
Chorley Borough Council,http://statistics.data.gov.uk/id/local-authority/30UE,Unapportionable Central OHeads,1009,Customer & Digital,Service Fees,40056,Services,5027,2018-19 daily hybrid mail & annual billing,05/10/2018,132680,823.35,Revenue,UKMAIL Ltd (Mail),57758
Chorley Borough Council,http://statistics.data.gov.uk/id/local-authority/30UE,Unapportionable Central OHeads,1009,Customer & Digital,Service Fees,40056,Services,5027,2018-19 daily hybrid mail & annual billing,05/10/2018,132681,601.89,Revenue,UKMAIL Ltd (Mail),57758
Chorley Borough Council,http://statistics.data.gov.uk/id/local-authority/30UE,Unapportionable Central OHeads,1009,Customer & Digital,Service Fees,40056,Services,5027,2018-19 daily hybrid mail & annual billing,24/10/2018,133199,601.30,Revenue,UKMAIL Ltd (Mail),57758
Chorley Borough Council,http://statistics.data.gov.uk/id/local-authority/30UE,Unapportionable Central OHeads,1009,Customer & Digital,Service Fees,40056,Services,5027,2018-19 daily hybrid mail & annual billing,24/10/2018,133214,872.69,Revenue,UKMAIL Ltd (Mail),57758
Chorley Borough Council,http://statistics.data.gov.uk/id/local-authority/30UE,Unapportionable Central OHeads,1009,Customer & Digital,Service Fees,40056,Services,5027,2018-19 daily hybrid mail & annual billing,24/10/2018,133215,"1,006.24",Revenue,UKMAIL Ltd (Mail),57758
Chorley Borough Council,http://statistics.data.gov.uk/id/local-authority/30UE,Recognised Cap Grants & Conts,,Customer & Digital,Contributions Parish Councils,40144,Grants and Subscriptions,5031,CIL receipt 1/4/18 to 30/9/18,12/10/2018,132904,"2,651.70",Revenue,Ulnes Walton Parish Council,16210
Chorley Borough Council,http://statistics.data.gov.uk/id/local-authority/30UE,Business Support,1095,Business Development & Growth,Miscellaneous Expenses,40200,Miscellaneous Expenses,5034,For business loan facilitation 2017/2018 and underwriting of delinquent loans.,31/10/2018,133328,500.00,Revenue,Unify Credit Union Ltd,55509
Chorley Borough Council,http://statistics.data.gov.uk/id/local-authority/30UE,Control Accounts,Control,Policy & Governance,General Balances,100,Balance Sheet,Balance,monthly deductions from payroll,31/10/2018,133370,"2,347.16",Revenue,Unify Credit Union Ltd,55509
Chorley Borough Council,http://statistics.data.gov.uk/id/local-authority/30UE,Parking Services,1066,Business Development & Growth,Rent/Hire Of Premises,20017,Premises Rents,5007,Rent for Hollinshead Street Car Park Chorley  July August September 2018,31/10/2018,133106,937.50,Revenue,United Reformed Church,20885
Chorley Borough Council,http://statistics.data.gov.uk/id/local-authority/30UE,Capital,Capital,Early Intervention,Grants,3002,Capital Expenditure,Capital,ADDRESS REDACTED,10/10/2018,132895,"4,643.75",Capital,UPS Building and Maintenance Ltd,76235
Chorley Borough Council,http://statistics.data.gov.uk/id/local-authority/30UE,Capital,Capital,Early Intervention,Grants,3002,Capital Expenditure,Capital,ADDRESS REDACTED,10/10/2018,132903,"3,509.53",Capital,UPS Building and Maintenance Ltd,76235
Chorley Borough Council,http://statistics.data.gov.uk/id/local-authority/30UE,Democratic Represent and  Mgnt,1007,Policy & Governance,Exhibitions & Special Events,40158,Miscellaneous Expenses,5034,"Filming and production of Astley Illuminated promo video at Astley Hall, Chorley.",05/10/2018,132840,600.00,Revenue,Urubu Ltd,77584
Chorley Borough Council,http://statistics.data.gov.uk/id/local-authority/30UE,Corporate Management,1008,Customer & Digital,Unitary Payment(S),50009,Private Contractors,5042,Provision of waste and recycling collection service and ancillary services for 2018/19.,24/10/2018,132725,"283,978.53",Revenue,Veolia ES (UK) Ltd,20748
Chorley Borough Council,http://statistics.data.gov.uk/id/local-authority/30UE,Central Support Services,1009,Customer & Digital,Computer Equipment - Security,40106,Communication and Computing,5028,,12/10/2018,132852,"3,921.43",Revenue,Vodafone Ltd,60180
Chorley Borough Council,http://statistics.data.gov.uk/id/local-authority/30UE,Unapportionable Central OHeads,1009,Business Development & Growth,Planned Maintenance,20006,Repairs Maintenance & Alts,5005,remedial works to extinguishers etc following annual inspections - Town Hall and Bengal St,31/10/2018,133140,299.70,Revenue,Walker Fire (UK) Ltd,17092
Chorley Borough Council,http://statistics.data.gov.uk/id/local-authority/30UE,Unapportionable Central OHeads,1009,Policy & Governance,Refreshments,40036,Catering,5024,"Supply, Sanitation, provision of cups and water for all Pressure Coolers for Council Sites for the month of October 2018",10/10/2018,132810,590.40,Revenue,Water Coolers LTD,19767
Chorley Borough Council,http://statistics.data.gov.uk/id/local-authority/30UE,Democratic Represent and  Mgnt,1007,Business Development & Growth,Water - Metered Supplies,20022,Water Services,5009,24/12/17 to 13,31/10/2018,132736,284.23,Revenue,Water-plus,17926
Chorley Borough Council,http://statistics.data.gov.uk/id/local-authority/30UE,Democratic Represent and  Mgnt,1007,Business Development & Growth,Water - Metered Supplies,20022,Water Services,5009,24/6/18 to 23/9/18,31/10/2018,132932,585.78,Revenue,Water-plus,17926
Chorley Borough Council,http://statistics.data.gov.uk/id/local-authority/30UE,Democratic Represent and  Mgnt,1007,Business Development & Growth,Water - Metered Supplies,20022,Water Services,5009,14/7/18 to 13/10/18,31/10/2018,133329,304.01,Revenue,Water-plus,17926
Chorley Borough Council,http://statistics.data.gov.uk/id/local-authority/30UE,Corporate Management,1008,Business Development & Growth,Water - Metered Supplies,20022,Water Services,5009,16/7/18 to 24/10/18,31/10/2018,133392,"2,943.35",Revenue,Water-plus,17926
Chorley Borough Council,http://statistics.data.gov.uk/id/local-authority/30UE,Recognised Cap Grants & Conts,,Customer & Digital,Contributions Parish Councils,40144,Grants and Subscriptions,5031,rec 1/4/18 to 30/9/18 to be paid by 28/10/18,24/10/2018,132894,"27,092.00",Revenue,Whittle-le-Woods Parish Council,18602
Chorley Borough Council,http://statistics.data.gov.uk/id/local-authority/30UE,Capital,Capital,Business Development & Growth,Equipment,3014,Capital Expenditure,Capital,"Supply Sputnik Roundabout  ref 6070-811 and Carriage to Bengal St Depot, Chorley",12/10/2018,132893,"3,372.00",Capital,Wicksteed Leisure Ltd,18007
Chorley Borough Council,http://statistics.data.gov.uk/id/local-authority/30UE,Recognised Cap Grants & Conts,,Customer & Digital,Contributions Parish Councils,40144,Grants and Subscriptions,5031,rec 1/4/18 to 30/9/18,12/10/2018,132892,"8,034.41",Revenue,Withnell Parish Council,16211
Chorley Borough Council,http://statistics.data.gov.uk/id/local-authority/30UE,Unapportionable Central OHeads,1009,Policy & Governance,Exhibitions & Special Events,40158,Miscellaneous Expenses,5034,Provision of street entertainment at Chorley Live,31/10/2018,133324,450.00,Revenue,Wolf Entertainments,77607
Chorley Borough Council,http://statistics.data.gov.uk/id/local-authority/30UE,Service Management & Support,1009,Customer & Digital,Vehicles and Plant Maintenance,30045,Direct Transport Costs,5016,Supply and fit new ignition barrel and key for FH15MZU,31/10/2018,133240,251.00,Revenue,Wrekamendid Services Ltd,21188
Chorley Borough Council,http://statistics.data.gov.uk/id/local-authority/30UE,Central Support Services,1009,Customer & Digital,Miscellaneous Expenses,40200,Miscellaneous Expenses,5034,"Xeretec Service Contract 420.58   You can make direct payments to our bank account",26/10/2018,133333,373.84,Revenue,Xeretec Document Solutions,20052
